Workbook

Sheet Clavet
A1: =Kerrobert!A1 -> Group: Global WYAMZ - Monthly Monthly: 01/2019 Type: AVG 1 Hr.
A3: Date & Time | B3: Clavet | C3: Clavet | D3: Clavet | E3: Clavet | F3: Clavet | G3: Clavet | H3: Clavet | I3: Clavet | J3: Clavet | K3: Clavet
B4: NO | C4: NO2 | D4: NOX | E4: O3 | F4: PM25 | G4: PRECIP | H4: TEMPERAT | I4: WS | J4: WD | K4: RH
B5: ppb | C5: ppb | D5: ppb | E5: ppb | F5: ug/m3(L) | G5: mm | H5: C° | I5: m/s | J5: Deg | K5: %RH
A6: 2019/09/01 01:00:00 | B6: 1.189 | C6: 6.04 | D6: 7.229 | E6: 10.832 | F6: 8.026 | G6: 0 | H6: 12.969 | I6: 1.032 | J6: 303.955 | K6: 82.377
A7: 2019/09/01 02:00:00 | B7: 0.346 | C7: 5.193 | D7: 5.539 | E7: 9.93 | F7: 8.139 | G7: 0 | H7: 12.246 | I7: 0.79 | J7: 317.606 | K7: 83.138
A8: 2019/09/01 03:00:00 | B8: 0.307 | C8: 5.825 | D8: 6.133 | E8: 6.979 | F8: 12.314 | G8: 0 | H8: 10.969 | I8: 0.583 | J8: 330.427 | K8: 86.091
A9: 2019/09/01 04:00:00 | B9: 0.423 | C9: 4.36 | D9: 4.782 | E9: 7.308 | F9: 18.483 | G9: 0 | H9: 9.984 | I9: 0.615 | J9: 346.473 | K9: 85.573
A10: 2019/09/01 05:00:00 | B10: 0.241 | C10: 4.749 | D10: 4.99 | E10: 6.068 | F10: 31.049 | G10: 0 | H10: 8.933 | I10: 0.515 | J10: 333.189 | K10: 86.713
A11: 2019/09/01 06:00:00 | B11: 0.406 | C11: 3.82 | D11: 4.228 | E11: 7.601 | F11: 9.861 | G11: 0 | H11: 8.382 | I11: 0.533 | J11: 320.399 | K11: 85.921
A12: 2019/09/01 07:00:00 | B12: 0.74 | C12: 3.155 | D12: 3.896 | E12: 7.721 | F12: 4.941 | G12: 0 | H12: 7.46 | I12: 0.727 | J12: 308.55 | K12: 86.48
A13: 2019/09/01 08:00:00 | B13: 0.929 | C13: 2.427 | D13: 3.355 | E13: 9.016 | F13: 12.549 | G13: 0 | H13: 8.365 | I13: 0.676 | J13: 340.416 | K13: 85.775
A14: 2019/09/01 09:00:00 | B14: 0.884 | C14: 1.383 | D14: 2.267 | E14: 10.167 | F14: 6.964 | G14: 0 | H14: 11.661 | I14: 0.81 | J14: 22.54 | K14: 79.34
A15: 2019/09/01 10:00:00 | B15: 0.438 | C15: 0.604 | D15: 1.042 | E15: 14.506 | F15: 4.571 | G15: 0 | H15: 15.197 | I15: 0.8 | J15: 30.479 | K15: 68.454
A16: 2019/09/01 11:00:00 | B16: 0.331 | C16: 0.508 | D16: 0.839 | E16: 20.987 | F16: 3.465 | G16: 0 | H16: 18.337 | I16: 0.459 | J16: 67.037 | K16: 53.845
A17: 2019/09/01 12:00:00 | B17: 0.219 | C17: 0.365 | D17: 0.584 | E17: 27.15 | F17: 2.676 | G17: 0 | H17: 19.611 | I17: 0.447 | J17: 91.999 | K17: 45.098
A18: 2019/09/01 13:00:00 | B18: 0.348 | C18: 0.407 | D18: 0.755 | E18: 30.423 | F18: 2.504 | G18: 0 | H18: 20.902 | I18: 0.597 | J18: 41.58 | K18: 38.886
A19: 2019/09/01 14:00:00 | B19: 0.136 | C19: 0.375 | D19: 0.512 | E19: 31.456 | F19: 2.554 | G19: 0 | H19: 21.375 | I19: 0.685 | J19: 73.113 | K19: 36.427
A20: 2019/09/01 15:00:00 | B20: 0.278 | C20: 0.385 | D20: 0.663 | E20: 32.019 | F20: 2.702 | G20: 0 | H20: 21.943 | I20: 0.649 | J20: 60.89 | K20: 35.075
A21: 2019/09/01 16:00:00 | B21: 0.14 | C21: 0.281 | D21: 0.421 | E21: 31.026 | F21: 3.109 | G21: 0 | H21: 22.046 | I21: 1.313 | J21: 41.43 | K21: 35.568
A22: 2019/09/01 17:00:00 | B22: 0.147 | C22: 0.33 | D22: 0.477 | E22: 30.1 | F22: 3.668 | G22: 0 | H22: 20.871 | I22: 1.442 | J22: 74.027 | K22: 39.773
A23: 2019/09/01 18:00:00 | B23: 0.279 | C23: 0.331 | D23: 0.609 | E23: 29.268 | F23: 3.783 | G23: 0 | H23: 20.382 | I23: 1.936 | J23: 81.106 | K23: 42.987
A24: 2019/09/01 19:00:00 | B24: 0.043 | C24: 0.395 | D24: 0.437 | E24: 27.351 | F24: 4.842 | G24: 0 | H24: 18.753 | I24: 2.068 | J24: 76.69 | K24: 49.599
A25: 2019/09/01 20:00:00 | B25: 0.189 | C25: 0.687 | D25: 0.876 | E25: 24.463 | F25: 6.231 | G25: 0 | H25: 16.118 | I25: 1.556 | J25: 81.58 | K25: 57.718
A26: 2019/09/01 21:00:00 | B26: 0.17 | C26: 0.857 | D26: 1.029 | E26: 21.884 | F26: 8.366 | G26: 0 | H26: 14.073 | I26: 1.647 | J26: 90.189 | K26: 64.746
A27: 2019/09/01 22:00:00 | B27: 0.098 | C27: 0.717 | D27: 0.815 | E27: 20.085 | F27: 7.923 | G27: 0 | H27: 13.407 | I27: 1.703 | J27: 97.695 | K27: 68.18
A28: 2019/09/01 23:00:00 | B28: Z | C28: Z | D28: Z | E28: Z | F28: 14.427 | G28: 0 | H28: 13.236 | I28: 1.609 | J28: 104.432 | K28: 69.433
A29: 2019/09/02 00:00:00 | B29: 0.222 | C29: 1.312 | D29: 1.535 | E29: 17.084 | F29: 14.79 | G29: 0 | H29: 12.845 | I29: 1.898 | J29: 106.79 | K29: 70.95
A30: 2019/09/02 01:00:00 | B30: 0.211 | C30: 1.607 | D30: 1.818 | E30: 15.461 | F30: 6.666 | G30: 0 | H30: 12.379 | I30: 1.707 | J30: 115.644 | K30: 74.149
A31: 2019/09/02 02:00:00 | B31: 0.084 | C31: 0.877 | D31: 0.961 | E31: 15.987 | F31: 6.512 | G31: 0 | H31: 11.923 | I31: 2.04 | J31: 119.774 | K31: 73.93
A32: 2019/09/02 03:00:00 | B32: -0.008 | C32: 1.597 | D32: 1.59 | E32: 14.062 | F32: 6.802 | G32: 0 | H32: 10.879 | I32: 2.077 | J32: 107.598 | K32: 77.076
A33: 2019/09/02 04:00:00 | B33: 0.185 | C33: 1.373 | D33: 1.559 | E33: 13.338 | F33: 6.49 | G33: 0 | H33: 10.64 | I33: 2.166 | J33: 109.5 | K33: 78.876
A34: 2019/09/02 05:00:00 | B34: 0.223 | C34: 1.184 | D34: 1.407 | E34: 11.823 | F34: 5.469 | G34: 0 | H34: 10.778 | I34: 2.101 | J34: 105.758 | K34: 80.338
A35: 2019/09/02 06:00:00 | B35: 0.233 | C35: 0.725 | D35: 0.958 | E35: 12.492 | F35: 4.344 | G35: 0.1 | H35: 11.363 | I35: 2.603 | J35: 108.506 | K35: 79.635
A36: 2019/09/02 07:00:00 | B36: 0.626 | C36: 1.644 | D36: 2.27 | E36: 11.853 | F36: 5.404 | G36: 12.83 | H36: 11.22 | I36: 1.15 | J36: 134.846 | K36: 83.115
A37: 2019/09/02 08:00:00 | B37: 0.225 | C37: 1.036 | D37: 1.259 | E37: 11.174 | F37: 7.777 | G37: 0.32 | H37: 10.953 | I37: 2.32 | J37: 91.665 | K37: 87.359
A38: 2019/09/02 09:00:00 | B38: 0.291 | C38: 0.592 | D38: 0.883 | E38: 12.618 | F38: 5.811 | G38: 0.01 | H38: 11.434 | I38: 2.529 | J38: 117.699 | K38: 85.441
A39: 2019/09/02 10:00:00 | B39: 1.284 | C39: 2.259 | D39: 3.542 | E39: 10.807 | F39: 2.815 | G39: 0 | H39: 11.796 | I39: 2.171 | J39: 140.151 | K39: 84.554
A40: 2019/09/02 11:00:00 | B40: 0.647 | C40: 0.935 | D40: 1.582 | E40: 9.782 | F40: 2.574 | G40: 0 | H40: 12.672 | I40: 1.645 | J40: 138.152 | K40: 84.204
A41: 2019/09/02 12:00:00 | B41: 1.013 | C41: 1.113 | D41: 2.128 | E41: 12.599 | F41: 3.479 | G41: 1.4 | H41: 13.986 | I41: 1.858 | J41: 156.294 | K41: 82.888
A42: 2019/09/02 13:00:00 | B42: 0.742 | C42: 1.003 | D42: 1.747 | E42: 13.41 | F42: 3.411 | G42: 0.16 | H42: 15.163 | I42: 1.518 | J42: 189.413 | K42: 83.366
A43: 2019/09/02 14:00:00 | B43: 0.841 | C43: 1.485 | D43: 2.326 | E43: 15.987 | F43: 2.419 | G43: 0.15 | H43: 16.551 | I43: 1.636 | J43: 221.224 | K43: 79.236
A44: 2019/09/02 15:00:00 | B44: 0.815 | C44: 1.637 | D44: 2.452 | E44: 21.539 | F44: 2.072 | G44: 0 | H44: 17.098 | I44: 2.892 | J44: 304.883 | K44: 75.08
A45: 2019/09/02 16:00:00 | B45: 0.736 | C45: 1.196 | D45: 1.931 | E45: 24.485 | F45: 2.143 | G45: 0 | H45: 17.67 | I45: 3.928 | J45: 311.95 | K45: 69.656
A46: 2019/09/02 17:00:00 | B46: 0.501 | C46: 1.095 | D46: 1.597 | E46: 26.7 | F46: 5.136 | G46: 0 | H46: 17.675 | I46: 3.283 | J46: 310.168 | K46: 61.973
A47: 2019/09/02 18:00:00 | B47: 0.658 | C47: 1.442 | D47: 2.1 | E47: 25.909 | F47: 8.389 | G47: 3.7 | H47: 17.04 | I47: 1.953 | J47: 297.345 | K47: 67.252
A48: 2019/09/02 19:00:00 | B48: 0.975 | C48: 3.148 | D48: 4.123 | E48: 20.28 | F48: 10.302 | G48: 0 | H48: 15.388 | I48: 2.511 | J48: 309.054 | K48: 79.014
A49: 2019/09/02 20:00:00 | B49: 0.435 | C49: 1.745 | D49: 2.179 | E49: 20.649 | F49: 4.633 | G49: 0 | H49: 14.891 | I49: 3.027 | J49: 305.571 | K49: 72.201
A50: 2019/09/02 21:00:00 | B50: 2.007 | C50: 5.147 | D50: 7.153 | E50: 16.412 | F50: 3.464 | G50: 0 | H50: 14.062 | I50: 2.543 | J50: 299.238 | K50: 75.74
A51: 2019/09/02 22:00:00 | B51: Z | C51: Z | D51: Z | E51: Z | F51: 4.433 | G51: 0 | H51: 14.044 | I51: 2.976 | J51: 304.779 | K51: 77.417
A52: 2019/09/02 23:00:00 | B52: 0.301 | C52: 2.116 | D52: 2.417 | E52: 15.367 | F52: 4.471 | G52: 0 | H52: 13.877 | I52: 2.613 | J52: 305.194 | K52: 78.383
A53: 2019/09/03 00:00:00 | B53: 0.325 | C53: 1.226 | D53: 1.551 | E53: 14.196 | F53: 3.228 | G53: 0 | H53: 13.662 | I53: 3.189 | J53: 314.256 | K53: 79.424
A54: 2019/09/03 01:00:00 | B54: 0.365 | C54: 1.206 | D54: 1.57 | E54: 13.281 | F54: 2.327 | G54: 0 | H54: 13.533 | I54: 2.926 | J54: 312.203 | K54: 80.655
A55: 2019/09/03 02:00:00 | B55: 0.459 | C55: 1.578 | D55: 2.036 | E55: 12.837 | F55: 1.806 | G55: 0 | H55: 13.44 | I55: 3.195 | J55: 317.319 | K55: 79.597
A56: 2019/09/03 03:00:00 | B56: 0.51 | C56: 2.587 | D56: 3.096 | E56: 10.129 | F56: 1.95 | G56: 0 | H56: 12.375 | I56: 2.477 | J56: 315.252 | K56: 82.597
A57: 2019/09/03 04:00:00 | B57: 0.355 | C57: 1.313 | D57: 1.666 | E57: 9.804 | F57: 1.781 | G57: 0 | H57: 11.9 | I57: 2.42 | J57: 316.559 | K57: 84.61
A58: 2019/09/03 05:00:00 | B58: 0.304 | C58: 1.545 | D58: 1.847 | E58: 9.277 | F58: 1.505 | G58: 0 | H58: 11.463 | I58: 2.946 | J58: 315.649 | K58: 83.989
A59: 2019/09/03 06:00:00 | B59: 0.46 | C59: 1.945 | D59: 2.403 | E59: 7.708 | F59: 1.464 | G59: 0 | H59: 10.507 | I59: 2.443 | J59: 312.164 | K59: 84.681
A60: 2019/09/03 07:00:00 | B60: 2.458 | C60: 3.748 | D60: 6.205 | E60: 4.468 | F60: 2.038 | G60: 0 | H60: 9.352 | I60: 1.225 | J60: 250.895 | K60: 86.776
A61: 2019/09/03 08:00:00 | B61: 2.31 | C61: 2.508 | D61: 4.818 | E61: 5.355 | F61: 1.936 | G61: 0 | H61: 9.32 | I61: 1.458 | J61: 235.084 | K61: 86.316
A62: 2019/09/03 09:00:00 | B62: 3.628 | C62: 2.955 | D62: 6.58 | E62: 7.185 | F62: 2.538 | G62: 0 | H62: 10.538 | I62: 1.587 | J62: 247.172 | K62: 83.014
A63: 2019/09/03 10:00:00 | B63: 3.891 | C63: 1.71 | D63: 5.598 | E63: 10.162 | F63: 2.487 | G63: 0 | H63: 12.944 | I63: 1.209 | J63: 252.132 | K63: 74.505
A64: 2019/09/03 11:00:00 | B64: 1.102 | C64: 1.105 | D64: 2.205 | E64: 16.85 | F64: 1.458 | G64: 0 | H64: 15.725 | I64: 0.908 | J64: 269.793 | K64: 62.935
A65: 2019/09/03 12:00:00 | B65: 1.148 | C65: 1.583 | D65: 2.728 | E65: 22.619 | F65: 1.787 | G65: 0 | H65: 17.68 | I65: 0.909 | J65: 254.109 | K65: 56.418
A66: 2019/09/03 13:00:00 | B66: 0.602 | C66: 1.09 | D66: 1.689 | E66: 27.55 | F66: 2.385 | G66: 0 | H66: 19.379 | I66: 1.17 | J66: 223.933 | K66: 51.239
A67: 2019/09/03 14:00:00 | B67: 0.283 | C67: 0.618 | D67: 0.899 | E67: 29.194 | F67: 2.463 | G67: 0 | H67: 20.522 | I67: 2.094 | J67: 223.555 | K67: 48.436
A68: 2019/09/03 15:00:00 | B68: 0.334 | C68: 0.808 | D68: 1.14 | E68: 30.018 | F68: 2.332 | G68: 0 | H68: 21.924 | I68: 2.261 | J68: 216.139 | K68: 45.184
A69: 2019/09/03 16:00:00 | B69: 0.759 | C69: 1.101 | D69: 1.858 | E69: 31.184 | F69: 2.566 | G69: 0 | H69: 23.034 | I69: 2.224 | J69: 217.539 | K69: 41.933
A70: 2019/09/03 17:00:00 | B70: 0.373 | C70: 1.104 | D70: 1.476 | E70: 37.152 | F70: 4.676 | G70: 0 | H70: 23.669 | I70: 2.367 | J70: 206.325 | K70: 40.013
A71: 2019/09/03 18:00:00 | B71: 0.203 | C71: 1.132 | D71: 1.331 | E71: 36.767 | F71: 5.256 | G71: 0 | H71: 24.067 | I71: 1.573 | J71: 203.911 | K71: 39.521
A72: 2019/09/03 19:00:00 | B72: 0.457 | C72: 1.457 | D72: 1.911 | E72: 33.807 | F72: 5.912 | G72: 0 | H72: 23.364 | I72: 1.29 | J72: 194.348 | K72: 43.718
A73: 2019/09/03 20:00:00 | B73: 0.491 | C73: 3.555 | D73: 4.043 | E73: 26.972 | F73: 7.796 | G73: 0 | H73: 21.112 | I73: 0.84 | J73: 181.336 | K73: 51.714
A74: 2019/09/03 21:00:00 | B74: Z | C74: Z | D74: Z | E74: Z | F74: 9.623 | G74: 0 | H74: 18.773 | I74: 0.707 | J74: 174.271 | K74: 58.051
A75: 2019/09/03 22:00:00 | B75: 0.644 | C75: 4.784 | D75: 5.426 | E75: 19.603 | F75: 9.329 | G75: 0 | H75: 17.146 | I75: 0.787 | J75: 203.765 | K75: 62.456
A76: 2019/09/03 23:00:00 | B76: 0.234 | C76: 1.762 | D76: 1.993 | E76: 23.588 | F76: 8.595 | G76: 0 | H76: 16.94 | I76: 0.688 | J76: 215.905 | K76: 59.021
A77: 2019/09/04 00:00:00 | B77: 0.145 | C77: 2.509 | D77: 2.65 | E77: 16.893 | F77: 9.033 | G77: 0 | H77: 14.593 | I77: 0.131 | J77: 69.138 | K77: 69.27
A78: 2019/09/04 01:00:00 | B78: 0.168 | C78: 2.603 | D78: 2.769 | E78: 15.067 | F78: 17.466 | G78: 0 | H78: 13.185 | I78: 0.393 | J78: 101.464 | K78: 73.831
A79: 2019/09/04 02:00:00 | B79: 0.49 | C79: 2.578 | D79: 3.066 | E79: 16.739 | F79: 14.848 | G79: 0 | H79: 13.532 | I79: 0.411 | J79: 129.687 | K79: 71.446
A80: 2019/09/04 03:00:00 | B80: 0.225 | C80: 2.792 | D80: 3.014 | E80: 11.327 | F80: 11.978 | G80: 0 | H80: 11.99 | I80: 0.383 | J80: 92.21 | K80: 78.185
A81: 2019/09/04 04:00:00 | B81: 0.292 | C81: 2.546 | D81: 2.835 | E81: 11.482 | F81: 10.371 | G81: 0 | H81: 12.084 | I81: 0.402 | J81: 106.589 | K81: 77.445
A82: 2019/09/04 05:00:00 | B82: 0.36 | C82: 1.301 | D82: 1.657 | E82: 13.927 | F82: 9.08 | G82: 0 | H82: 12.377 | I82: 0.837 | J82: 164.043 | K82: 77.751
A83: 2019/09/04 06:00:00 | B83: 0.342 | C83: 2.854 | D83: 3.192 | E83: 14.648 | F83: 8.371 | G83: 0 | H83: 12.576 | I83: 0.844 | J83: 142.022 | K83: 73.463
A84: 2019/09/04 07:00:00 | B84: 1.222 | C84: 4.595 | D84: 5.814 | E84: 8.892 | F84: 8.066 | G84: 0 | H84: 11.174 | I84: 0.788 | J84: 105.942 | K84: 78.3
A85: 2019/09/04 08:00:00 | B85: 0.58 | C85: 1.513 | D85: 2.092 | E85: 11.525 | F85: 8.045 | G85: 0 | H85: 12.114 | I85: 1.217 | J85: 107.57 | K85: 76.758
A86: 2019/09/04 09:00:00 | B86: 0.916 | C86: 1.461 | D86: 2.375 | E86: 11.228 | F86: 6.893 | G86: 0 | H86: 13.881 | I86: 1.327 | J86: 105.616 | K86: 71.965
A87: 2019/09/04 10:00:00 | B87: 0.534 | C87: 0.899 | D87: 1.431 | E87: 14.015 | F87: 6.858 | G87: 0 | H87: 15.773 | I87: 1.348 | J87: 114.257 | K87: 66.975
A88: 2019/09/04 11:00:00 | B88: 0.515 | C88: 1.171 | D88: 1.683 | E88: 16.348 | F88: 6.565 | G88: 0 | H88: 17 | I88: 1.328 | J88: 130.725 | K88: 62.967
A89: 2019/09/04 12:00:00 | B89: 0.373 | C89: 0.852 | D89: 1.222 | E89: 19.787 | F89: 6.555 | G89: 0 | H89: 17.481 | I89: 1.132 | J89: 125.314 | K89: 60.014
A90: 2019/09/04 13:00:00 | B90: 0.676 | C90: 1.619 | D90: 2.292 | E90: 18.434 | F90: 6.787 | G90: 0 | H90: 17.852 | I90: 0.582 | J90: 93.803 | K90: 60.615
A91: 2019/09/04 14:00:00 | B91: 0.535 | C91: 1.575 | D91: 2.107 | E91: 17.175 | F91: 8.073 | G91: 0 | H91: 17.7 | I91: 1.773 | J91: 76.293 | K91: 63.667
A92: 2019/09/04 15:00:00 | B92: 1.315 | C92: 1.521 | D92: 2.835 | E92: 21.023 | F92: 5.634 | G92: 0.63 | H92: 18.541 | I92: 1.636 | J92: 99.643 | K92: 60.294
A93: 2019/09/04 16:00:00 | B93: 3.363 | C93: 4.465 | D93: 7.826 | E93: 14.912 | F93: 7.9 | G93: 0.3 | H93: 16.679 | I93: 0.68 | J93: 180.78 | K93: 75.109
A94: 2019/09/04 17:00:00 | B94: 1.517 | C94: 3.77 | D94: 5.286 | E94: 9.625 | F94: 4.965 | G94: 0.11 | H94: 16.299 | I94: 0.923 | J94: 89.558 | K94: 81.391
A95: 2019/09/04 18:00:00 | B95: 0.595 | C95: 1.893 | D95: 2.488 | E95: 14.471 | F95: 2.883 | G95: 0 | H95: 16.868 | I95: 1.455 | J95: 71.492 | K95: 78.593
A96: 2019/09/04 19:00:00 | B96: 0.774 | C96: 2.125 | D96: 2.896 | E96: 14.432 | F96: 2.984 | G96: 0 | H96: 17.428 | I96: 1.623 | J96: 55.515 | K96: 76.357
A97: 2019/09/04 20:00:00 | B97: Z | C97: Z | D97: Z | E97: Z | F97: 3.391 | G97: 0 | H97: 16.009 | I97: 0.339 | J97: 76.11 | K97: 80.995
A98: 2019/09/04 21:00:00 | B98: 2.466 | C98: 6.524 | D98: 8.99 | E98: 4.634 | F98: 6.786 | G98: 0 | H98: 15.004 | I98: 0.59 | J98: 310.881 | K98: 84.075
A99: 2019/09/04 22:00:00 | B99: 0.52 | C99: 3.821 | D99: 4.341 | E99: 6.381 | F99: 6.062 | G99: 0 | H99: 14.695 | I99: 0.335 | J99: 3.341 | K99: 83.552
A100: 2019/09/04 23:00:00 | B100: 0.409 | C100: 2.079 | D100: 2.488 | E100: 6.648 | F100: 3.568 | G100: 0 | H100: 13.84 | I100: 0.185 | J100: 80.814 | K100: 85.522
A101: 2019/09/05 00:00:00 | B101: 2.834 | C101: 4.767 | D101: 7.6 | E101: 1.55 | F101: 9.668 | G101: 0 | H101: 12.436 | I101: 0.389 | J101: 346.633 | K101: 87.313
A102: 2019/09/05 01:00:00 | B102: 4.655 | C102: 4.328 | D102: 8.982 | E102: 0.626 | F102: 5.692 | G102: 0 | H102: 11.427 | I102: 0.418 | J102: 224.225 | K102: 88.379
A103: 2019/09/05 02:00:00 | B103: 0.71 | C103: 2.432 | D103: 3.142 | E103: 1.416 | F103: 2.681 | G103: 0 | H103: 10.703 | I103: 0.543 | J103: 280.79 | K103: 88.743
A104: 2019/09/05 03:00:00 | B104: 4.012 | C104: 2.359 | D104: 6.371 | E104: 0.394 | F104: 2.168 | G104: 0 | H104: 9.939 | I104: 0.447 | J104: 275.995 | K104: 88.976
A105: 2019/09/05 04:00:00 | B105: 1.807 | C105: 2.4 | D105: 4.207 | E105: 0.769 | F105: 1.893 | G105: 0 | H105: 9.229 | I105: 0.82 | J105: 295.341 | K105: 88.97
A106: 2019/09/05 05:00:00 | B106: 0.468 | C106: 1.901 | D106: 2.37 | E106: 1.006 | F106: 2.495 | G106: 0 | H106: 8.633 | I106: 1.965 | J106: 314.154 | K106: 89.102
A107: 2019/09/05 06:00:00 | B107: 1.069 | C107: 3.197 | D107: 4.267 | E107: 0.493 | F107: 2.803 | G107: 0 | H107: 9.954 | I107: 0.904 | J107: 303.48 | K107: 89.808
A108: 2019/09/05 07:00:00 | B108: 1.506 | C108: 2.493 | D108: 3.999 | E108: 3.728 | F108: 2.071 | G108: 0 | H108: 10.773 | I108: 1.349 | J108: 264.395 | K108: 89.749
A109: 2019/09/05 08:00:00 | B109: 2.671 | C109: 2.769 | D109: 5.441 | E109: 5.494 | F109: 2.552 | G109: 0 | H109: 11.242 | I109: 1.248 | J109: 251.137 | K109: 89.747
A110: 2019/09/05 09:00:00 | B110: 2.426 | C110: 2.26 | D110: 4.688 | E110: 6.123 | F110: 4.628 | G110: 0 | H110: 11.9 | I110: 1.697 | J110: 242.85 | K110: 89.737
A111: 2019/09/05 10:00:00 | B111: 1.687 | C111: 1.763 | D111: 3.452 | E111: 7.912 | F111: 5.089 | G111: 0 | H111: 13.07 | I111: 1.459 | J111: 250.542 | K111: 89.139
A112: 2019/09/05 11:00:00 | B112: 2.305 | C112: 2.285 | D112: 4.593 | E112: 10.969 | F112: 2.822 | G112: 0 | H112: 14.913 | I112: 2.066 | J112: 251.121 | K112: 80.441
A113: 2019/09/05 12:00:00 | B113: 1.754 | C113: 1.799 | D113: 3.554 | E113: 15.635 | F113: 1.924 | G113: 0 | H113: 16.885 | I113: 2.32 | J113: 273.523 | K113: 71.373
A114: 2019/09/05 13:00:00 | B114: 0.649 | C114: 0.897 | D114: 1.549 | E114: 22.523 | F114: 1.616 | G114: 0 | H114: 18.928 | I114: 2.81 | J114: 297.267 | K114: 59.058
A115: 2019/09/05 14:00:00 | B115: 1.708 | C115: 0.964 | D115: 2.674 | E115: 25.116 | F115: 1.945 | G115: 0 | H115: 19.912 | I115: 3.574 | J115: 304.036 | K115: 53.652
A116: 2019/09/05 15:00:00 | B116: 0.77 | C116: 0.883 | D116: 1.655 | E116: 27.654 | F116: 1.228 | G116: 0 | H116: 20.494 | I116: 3.872 | J116: 309.504 | K116: 49.757
A117: 2019/09/05 16:00:00 | B117: 0.811 | C117: 0.893 | D117: 1.707 | E117: 30.931 | F117: 2.152 | G117: 0 | H117: 21.643 | I117: 3.715 | J117: 309.888 | K117: 42.536
A118: 2019/09/05 17:00:00 | B118: 0.582 | C118: 0.671 | D118: 1.256 | E118: 32.87 | F118: 1.944 | G118: 0 | H118: 22.154 | I118: 3.958 | J118: 314.492 | K118: 37.708
A119: 2019/09/05 18:00:00 | B119: 0.84 | C119: 0.878 | D119: 1.722 | E119: 32.874 | F119: 2.432 | G119: 0 | H119: 21.87 | I119: 3.789 | J119: 315.852 | K119: 37.299
A120: 2019/09/05 19:00:00 | B120: Z | C120: Z | D120: Z | E120: Z | F120: 2.962 | G120: 0 | H120: 21.043 | I120: 1.922 | J120: 297.273 | K120: 40.715
A121: 2019/09/05 20:00:00 | B121: 0.753 | C121: 2.593 | D121: 3.349 | E121: 25.015 | F121: 4.202 | G121: 0 | H121: 18.451 | I121: 1.366 | J121: 301.5 | K121: 47.699
A122: 2019/09/05 21:00:00 | B122: 0.775 | C122: 3.615 | D122: 4.394 | E122: 22.528 | F122: 5.57 | G122: 0 | H122: 16.164 | I122: 0.891 | J122: 300.876 | K122: 53.512
A123: 2019/09/05 22:00:00 | B123: 0.564 | C123: 7.734 | D123: 8.303 | E123: 16.201 | F123: 6.914 | G123: 0 | H123: 14.781 | I123: 0.645 | J123: 314.94 | K123: 58.489
A124: 2019/09/05 23:00:00 | B124: 2.47 | C124: 8.731 | D124: 11.203 | E124: 10.282 | F124: 6.91 | G124: 0 | H124: 12.738 | I124: 0.25 | J124: 272.779 | K124: 67.299
A125: 2019/09/06 00:00:00 | B125: 0.599 | C125: 6.748 | D125: 7.349 | E125: 6.202 | F125: 6.486 | G125: 0 | H125: 10.885 | I125: 0.317 | J125: 220.767 | K125: 74.522
A126: 2019/09/06 01:00:00 | B126: 0.386 | C126: 4.833 | D126: 5.222 | E126: 6.025 | F126: 6.346 | G126: 0 | H126: 9.679 | I126: 0.345 | J126: 194.603 | K126: 77.329
A127: 2019/09/06 02:00:00 | B127: 0.649 | C127: 4.732 | D127: 5.383 | E127: 4.939 | F127: 5.47 | G127: 0 | H127: 8.444 | I127: 0.444 | J127: 182.307 | K127: 80.726
A128: 2019/09/06 03:00:00 | B128: 0.397 | C128: 3.099 | D128: 3.498 | E128: 5.204 | F128: 5.306 | G128: 0 | H128: 7.595 | I128: 0.477 | J128: 181.394 | K128: 82.773
A129: 2019/09/06 04:00:00 | B129: 4.492 | C129: 6.739 | D129: 11.233 | E129: 3.587 | F129: 5.375 | G129: 0 | H129: 7.449 | I129: 0.288 | J129: 182.196 | K129: 84.352
A130: 2019/09/06 05:00:00 | B130: 0.786 | C130: 2.427 | D130: 3.215 | E130: 7.26 | F130: 4.208 | G130: 0 | H130: 7.34 | I130: 0.782 | J130: 191.52 | K130: 84.079
A131: 2019/09/06 06:00:00 | B131: 0.859 | C131: 2.001 | D131: 2.861 | E131: 6.758 | F131: 4.154 | G131: 0 | H131: 7.024 | I131: 1.403 | J131: 196.087 | K131: 84.271
A132: 2019/09/06 07:00:00 | B132: 2.582 | C132: 2.573 | D132: 5.157 | E132: 5.645 | F132: 4.451 | G132: 0 | H132: 6.871 | I132: 0.712 | J132: 201.743 | K132: 84.425
A133: 2019/09/06 08:00:00 | B133: 3.653 | C133: 3.286 | D133: 6.94 | E133: 5.636 | F133: 4.509 | G133: 0 | H133: 8.194 | I133: 0.487 | J133: 261.568 | K133: 82.102
A134: 2019/09/06 09:00:00 | B134: 4.452 | C134: 4.234 | D134: 8.687 | E134: 8.255 | F134: 4.359 | G134: 0 | H134: 11.766 | I134: 0.499 | J134: 308.03 | K134: 72.81
A135: 2019/09/06 10:00:00 | B135: 3.007 | C135: 2.952 | D135: 5.96 | E135: 12.315 | F135: 3.475 | G135: 0 | H135: 15.271 | I135: 1.197 | J135: 347.901 | K135: 65.61
A136: 2019/09/06 11:00:00 | B136: 0.606 | C136: 0.815 | D136: 1.422 | E136: 20.654 | F136: 3.422 | G136: 0 | H136: 18.222 | I136: 1.474 | J136: 19.363 | K136: 55.143
A137: 2019/09/06 12:00:00 | B137: 0.611 | C137: 0.522 | D137: 1.133 | E137: 23.485 | F137: 2.867 | G137: 0 | H137: 19.883 | I137: 1.751 | J137: 32.524 | K137: 48.961
A138: 2019/09/06 13:00:00 | B138: 0.114 | C138: 0.256 | D138: 0.371 | E138: 25.577 | F138: 2.613 | G138: 0 | H138: 21.208 | I138: 1.436 | J138: 43.284 | K138: 43.38
A139: 2019/09/06 14:00:00 | B139: 0.204 | C139: 0.279 | D139: 0.484 | E139: 27.187 | F139: 1.869 | G139: 0 | H139: 21.462 | I139: 1.221 | J139: 28.454 | K139: 39.068
A140: 2019/09/06 15:00:00 | B140: 0.259 | C140: 0.469 | D140: 0.728 | E140: 28.853 | F140: 1.616 | G140: 0 | H140: 21.949 | I140: 1.299 | J140: 27.095 | K140: 35.897
A141: 2019/09/06 16:00:00 | B141: 0.738 | C141: 1.236 | D141: 1.974 | E141: 27.392 | F141: 2.852 | G141: 0 | H141: 21.057 | I141: 1.205 | J141: 38.729 | K141: 38.691
A142: 2019/09/06 17:00:00 | B142: 0.112 | C142: 0.442 | D142: 0.555 | E142: 28.41 | F142: 3.145 | G142: 0 | H142: 20.633 | I142: 1.594 | J142: 28.435 | K142: 38.429
A143: 2019/09/06 18:00:00 | B143: Z | C143: Z | D143: Z | E143: Z | F143: 4.435 | G143: 0 | H143: 19.784 | I143: 0.997 | J143: 39.027 | K143: 41.208
A144: 2019/09/06 19:00:00 | B144: 0.117 | C144: 1.434 | D144: 1.551 | E144: 23.196 | F144: 4.069 | G144: 0 | H144: 17.997 | I144: 0.956 | J144: 49.704 | K144: 46.426
A145: 2019/09/06 20:00:00 | B145: 0.211 | C145: 1.564 | D145: 1.773 | E145: 19.233 | F145: 5.083 | G145: 0 | H145: 16.144 | I145: 0.916 | J145: 44.47 | K145: 54.293
A146: 2019/09/06 21:00:00 | B146: 0.204 | C146: 1.892 | D146: 2.096 | E146: 17.044 | F146: 6.08 | G146: 0 | H146: 14.698 | I146: 1.223 | J146: 40.373 | K146: 59.93
A147: 2019/09/06 22:00:00 | B147: 0.347 | C147: 1.59 | D147: 1.936 | E147: 15.566 | F147: 4.909 | G147: 0 | H147: 13.594 | I147: 0.976 | J147: 57.734 | K147: 64.601
A148: 2019/09/06 23:00:00 | B148: 0.158 | C148: 1.13 | D148: 1.288 | E148: 17.215 | F148: 3.678 | G148: 0 | H148: 13.278 | I148: 1.205 | J148: 70.674 | K148: 63.778
A149: 2019/09/07 00:00:00 | B149: -0.032 | C149: 0.808 | D149: 0.776 | E149: 15.468 | F149: 3.543 | G149: 0 | H149: 12.72 | I149: 1.913 | J149: 86.267 | K149: 68.572
A150: 2019/09/07 01:00:00 | B150: -0.055 | C150: 0.716 | D150: 0.662 | E150: 13.226 | F150: 4.03 | G150: 0 | H150: 11.989 | I150: 1.791 | J150: 97.482 | K150: 72.99
A151: 2019/09/07 02:00:00 | B151: 0.051 | C151: 0.569 | D151: 0.62 | E151: 11.625 | F151: 3.586 | G151: 0 | H151: 11.26 | I151: 1.393 | J151: 94.467 | K151: 76.042
A152: 2019/09/07 03:00:00 | B152: 0.09 | C152: 0.926 | D152: 1.018 | E152: 8.737 | F152: 2.871 | G152: 0 | H152: 9.912 | I152: 1.057 | J152: 83.934 | K152: 80.747
A153: 2019/09/07 04:00:00 | B153: -0.045 | C153: 0.799 | D153: 0.755 | E153: 8.651 | F153: 2.378 | G153: 0 | H153: 9.251 | I153: 1.031 | J153: 81.445 | K153: 82.225
A154: 2019/09/07 05:00:00 | B154: 0.187 | C154: 0.529 | D154: 0.717 | E154: 8.037 | F154: 2.205 | G154: 0 | H154: 8.821 | I154: 1.115 | J154: 84.433 | K154: 83.603
A155: 2019/09/07 06:00:00 | B155: 0.1 | C155: 0.566 | D155: 0.666 | E155: 7.659 | F155: 2.336 | G155: 0 | H155: 8.678 | I155: 1.077 | J155: 83.566 | K155: 84.148
A156: 2019/09/07 07:00:00 | B156: 0.144 | C156: 0.433 | D156: 0.576 | E156: 6.818 | F156: 2.207 | G156: 0 | H156: 7.966 | I156: 1.009 | J156: 89.963 | K156: 85.242
A157: 2019/09/07 08:00:00 | B157: 0.183 | C157: 0.364 | D157: 0.547 | E157: 7.447 | F157: 4.043 | G157: 0 | H157: 8.549 | I157: 1.199 | J157: 96.616 | K157: 84.873
A158: 2019/09/07 09:00:00 | B158: 0.649 | C158: 0.599 | D158: 1.247 | E158: 8.663 | F158: 6.707 | G158: 0 | H158: 10.035 | I158: 1.322 | J158: 105.872 | K158: 82.668
A159: 2019/09/07 10:00:00 | B159: 0.49 | C159: 0.903 | D159: 1.393 | E159: 9.994 | F159: 1.505 | G159: 0 | H159: 11.516 | I159: 1.21 | J159: 120.658 | K159: 78.673
A160: 2019/09/07 11:00:00 | B160: 0.834 | C160: 0.903 | D160: 1.738 | E160: 11.583 | F160: 1.057 | G160: 0 | H160: 14.018 | I160: 1.547 | J160: 137.588 | K160: 69.682
A161: 2019/09/07 12:00:00 | B161: 0.274 | C161: 0.456 | D161: 0.732 | E161: 15.01 | F161: 1.404 | G161: 0 | H161: 16.329 | I161: 1.064 | J161: 141.285 | K161: 61.556
A162: 2019/09/07 13:00:00 | B162: 0.16 | C162: 0.595 | D162: 0.755 | E162: 19.964 | F162: 2.071 | G162: 0 | H162: 18.377 | I162: 1.011 | J162: 158.691 | K162: 52.873
A163: 2019/09/07 14:00:00 | B163: 0.127 | C163: 0.508 | D163: 0.635 | E163: 24.495 | F163: 1.253 | G163: 0 | H163: 19.631 | I163: 1.121 | J163: 148.958 | K163: 43.917
A164: 2019/09/07 15:00:00 | B164: 0.238 | C164: 0.404 | D164: 0.641 | E164: 26.199 | F164: 1.054 | G164: 0 | H164: 20.645 | I164: 1.25 | J164: 163.369 | K164: 40.265
A165: 2019/09/07 16:00:00 | B165: 0.274 | C165: 0.795 | D165: 1.07 | E165: 28.707 | F165: 1.153 | G165: 0 | H165: 21.32 | I165: 1.4 | J165: 179.811 | K165: 36.051
A166: 2019/09/07 17:00:00 | B166: Z | C166: Z | D166: Z | E166: Z | F166: 1.59 | G166: 0 | H166: 21.595 | I166: 1.392 | J166: 186.929 | K166: 37.285
A167: 2019/09/07 18:00:00 | B167: 0.13 | C167: 1.436 | D167: 1.565 | E167: 27.225 | F167: 2.501 | G167: 0 | H167: 20.89 | I167: 0.883 | J167: 180.064 | K167: 39.572
A168: 2019/09/07 19:00:00 | B168: 0.171 | C168: 1.751 | D168: 1.922 | E168: 24.784 | F168: 5.039 | G168: 0 | H168: 20.081 | I168: 0.844 | J168: 140.151 | K168: 44.394
A169: 2019/09/07 20:00:00 | B169: 0.259 | C169: 2.887 | D169: 3.146 | E169: 20.122 | F169: 6.497 | G169: 0 | H169: 17.511 | I169: 1.084 | J169: 141.382 | K169: 54.667
A170: 2019/09/07 21:00:00 | B170: 0.209 | C170: 3.126 | D170: 3.336 | E170: 17.89 | F170: 8.867 | G170: 0 | H170: 15.417 | I170: 1.317 | J170: 145.268 | K170: 63.229
A171: 2019/09/07 22:00:00 | B171: 0.569 | C171: 2.16 | D171: 2.729 | E171: 18.752 | F171: 7.564 | G171: 0 | H171: 14.453 | I171: 1.308 | J171: 159.332 | K171: 66.918
A172: 2019/09/07 23:00:00 | B172: 0.095 | C172: 0.893 | D172: 0.988 | E172: 21.238 | F172: 7.252 | G172: 0 | H172: 13.673 | I172: 1.693 | J172: 174.888 | K172: 69.5
A173: 2019/09/08 00:00:00 | B173: 0.091 | C173: 1.159 | D173: 1.249 | E173: 25.314 | F173: 4.573 | G173: 0 | H173: 14.024 | I173: 2.275 | J173: 192.833 | K173: 64.201
A174: 2019/09/08 01:00:00 | B174: 1.667 | C174: 1.865 | D174: 3.53 | E174: 23.596 | F174: 3.75 | G174: 0 | H174: 13.056 | I174: 2.252 | J174: 191.5 | K174: 67.398
A175: 2019/09/08 02:00:00 | B175: 0.255 | C175: 1.465 | D175: 1.718 | E175: 23.766 | F175: 3.183 | G175: 0 | H175: 12.835 | I175: 2.103 | J175: 193.069 | K175: 68.264
A176: 2019/09/08 03:00:00 | B176: 0.723 | C176: 1.641 | D176: 2.364 | E176: 21.291 | F176: 2.915 | G176: 0 | H176: 12.16 | I176: 1.857 | J176: 196.297 | K176: 71.039
A177: 2019/09/08 04:00:00 | B177: 0.401 | C177: 1.196 | D177: 1.596 | E177: 20.041 | F177: 3.375 | G177: 0 | H177: 11.287 | I177: 1.747 | J177: 198.767 | K177: 74.104
A178: 2019/09/08 05:00:00 | B178: 0.521 | C178: 1.437 | D178: 1.955 | E178: 17.947 | F178: 4.387 | G178: 0 | H178: 10 | I178: 1.654 | J178: 199.467 | K178: 78.107
A179: 2019/09/08 06:00:00 | B179: 0.002 | C179: 0.82 | D179: 0.819 | E179: 15.87 | F179: 5.586 | G179: 0 | H179: 9.421 | I179: 1.428 | J179: 196.972 | K179: 81.248
A180: 2019/09/08 07:00:00 | B180: 0.817 | C180: 2.096 | D180: 2.912 | E180: 12.843 | F180: 5.536 | G180: 0 | H180: 9.01 | I180: 1.574 | J180: 205.291 | K180: 82.597
A181: 2019/09/08 08:00:00 | B181: 0.812 | C181: 1.779 | D181: 2.589 | E181: 11.229 | F181: 5.122 | G181: 0 | H181: 9.167 | I181: 0.533 | J181: 193.546 | K181: 82.928
A182: 2019/09/08 09:00:00 | B182: 1.166 | C182: 0.817 | D182: 1.98 | E182: 13.919 | F182: 4.092 | G182: 0 | H182: 11.643 | I182: 1.406 | J182: 189.638 | K182: 76.049
A183: 2019/09/08 10:00:00 | B183: 1.019 | C183: 1.165 | D183: 2.181 | E183: 17.952 | F183: 3.297 | G183: 0 | H183: 13.732 | I183: 2.016 | J183: 199.678 | K183: 66.751
A184: 2019/09/08 11:00:00 | B184: 0.406 | C184: 0.554 | D184: 0.957 | E184: 22.243 | F184: 2.902 | G184: 0 | H184: 15.073 | I184: 2.114 | J184: 190.236 | K184: 61.338
A185: 2019/09/08 12:00:00 | B185: 0.115 | C185: 0.332 | D185: 0.444 | E185: 25.067 | F185: 3.632 | G185: 0 | H185: 16.372 | I185: 1.728 | J185: 167.864 | K185: 57.181
A186: 2019/09/08 13:00:00 | B186: 0.354 | C186: 0.668 | D186: 1.019 | E186: 30.002 | F186: 2.191 | G186: 0 | H186: 18.268 | I186: 1.918 | J186: 164.686 | K186: 50.21
A187: 2019/09/08 14:00:00 | B187: 0.302 | C187: 0.548 | D187: 0.847 | E187: 32.756 | F187: 1.787 | G187: 0 | H187: 19.815 | I187: 1.855 | J187: 159.063 | K187: 44.966
A188: 2019/09/08 15:00:00 | B188: 0.06 | C188: 0.381 | D188: 0.439 | E188: 34.141 | F188: 1.409 | G188: 0 | H188: 20.329 | I188: 1.542 | J188: 164.17 | K188: 44.294
A189: 2019/09/08 16:00:00 | B189: Z | C189: Z | D189: Z | E189: Z | F189: 0.905 | G189: 0 | H189: 20.833 | I189: 1.257 | J189: 165.365 | K189: 42.312
A190: 2019/09/08 17:00:00 | B190: 0.084 | C190: 0.673 | D190: 0.755 | E190: 36.866 | F190: 0.958 | G190: 0 | H190: 20.913 | I190: 0.929 | J190: 142.744 | K190: 42.558
A191: 2019/09/08 18:00:00 | B191: 0.061 | C191: 0.411 | D191: 0.471 | E191: 36.47 | F191: 1.511 | G191: 0 | H191: 20.235 | I191: 1.071 | J191: 130.568 | K191: 43.994
A192: 2019/09/08 19:00:00 | B192: 0.042 | C192: 0.47 | D192: 0.509 | E192: 35.656 | F192: 2.489 | G192: 0 | H192: 19.292 | I192: 0.865 | J192: 112.603 | K192: 46.521
A193: 2019/09/08 20:00:00 | B193: 0.101 | C193: 0.971 | D193: 1.07 | E193: 30.828 | F193: 4.037 | G193: 0 | H193: 16.759 | I193: 0.957 | J193: 96.676 | K193: 55.197
A194: 2019/09/08 21:00:00 | B194: 0.057 | C194: 1.587 | D194: 1.642 | E194: 27.705 | F194: 7.431 | G194: 0 | H194: 14.64 | I194: 1.201 | J194: 91.591 | K194: 62.794
A195: 2019/09/08 22:00:00 | B195: -0.016 | C195: 1.63 | D195: 1.612 | E195: 23.355 | F195: 7.302 | G195: 0 | H195: 13.761 | I195: 1.458 | J195: 80.361 | K195: 67.1
A196: 2019/09/08 23:00:00 | B196: 0.028 | C196: 0.782 | D196: 0.809 | E196: 12.776 | F196: 5.861 | G196: 0 | H196: 12.919 | I196: 2.151 | J196: 80.941 | K196: 78.768
A197: 2019/09/09 00:00:00 | B197: -0.006 | C197: 0.731 | D197: 0.724 | E197: 10.964 | F197: 4.878 | G197: 0 | H197: 11.865 | I197: 2.29 | J197: 85.042 | K197: 83.142
A198: 2019/09/09 01:00:00 | B198: 0.157 | C198: 0.59 | D198: 0.747 | E198: 10.67 | F198: 3.247 | G198: 0 | H198: 11.337 | I198: 2.173 | J198: 77.519 | K198: 84.618
A199: 2019/09/09 02:00:00 | B199: 0.062 | C199: 0.697 | D199: 0.757 | E199: 11.128 | F199: 3.506 | G199: 0 | H199: 10.977 | I199: 2.156 | J199: 76.952 | K199: 85.534
A200: 2019/09/09 03:00:00 | B200: 0.173 | C200: 0.4 | D200: 0.573 | E200: 11.162 | F200: 3.444 | G200: 0 | H200: 10.783 | I200: 1.849 | J200: 76.437 | K200: 86.286
A201: 2019/09/09 04:00:00 | B201: 0.086 | C201: 0.342 | D201: 0.428 | E201: 10.434 | F201: 3.512 | G201: 0 | H201: 10.497 | I201: 1.625 | J201: 72.969 | K201: 86.808
... 531 more rows

Sheet Kerrobert
A1: Group: Global WYAMZ - Monthly Monthly: 01/2019 Type: AVG 1 Hr.
A3: Date & Time | B3: Kerrobert | C3: Kerrobert | D3: Kerrobert | E3: Kerrobert | F3: Kerrobert | G3: Kerrobert | H3: Kerrobert | I3: Kerrobert
B4: SO2 | C4: H2S | D4: PM25 | E4: PRECIP | F4: TEMPERAT | G4: RH | H4: WS | I4: WD
B5: ppb | C5: ppb | D5: ug/m3(L) | E5: mm | F5: C° | G5: %RH | H5: m/s | I5: Deg
A6: 2019/09/01 01:00:00 | B6: 0.003 | C6: 0.162 | D6: 5.655 | E6: 0 | F6: 11.68 | G6: 84.459 | H6: 0.862 | I6: 4.255
A7: 2019/09/01 02:00:00 | B7: -0.02 | C7: 0.147 | D7: 6.389 | E7: 0 | F7: 11.009 | G7: 85.157 | H7: 0.863 | I7: 355.221
A8: 2019/09/01 03:00:00 | B8: 0.085 | C8: 0.206 | D8: 6.697 | E8: 0 | F8: 10.251 | G8: 85.105 | H8: 0.87 | I8: 1.784
A9: 2019/09/01 04:00:00 | B9: 0.076 | C9: 0.327 | D9: 7.08 | E9: 0 | F9: 8.769 | G9: 79.002 | H9: 0.973 | I9: 6.866
A10: 2019/09/01 05:00:00 | B10: 0.013 | C10: 0.349 | D10: 9.097 | E10: 0 | F10: 9.936 | G10: 89.17 | H10: 0.931 | I10: 10.107
A11: 2019/09/01 06:00:00 | B11: -0.037 | C11: 0.358 | D11: 3.458 | E11: 0 | F11: 9.209 | G11: 89.349 | H11: 0.971 | I11: 24.165
A12: 2019/09/01 07:00:00 | B12: -0.054 | C12: 0.311 | D12: 4.122 | E12: 0 | F12: 8.567 | G12: 89.689 | H12: 1.042 | I12: 20.069
A13: 2019/09/01 08:00:00 | B13: 0.02 | C13: 0.262 | D13: 4.571 | E13: 0 | F13: 9.161 | G13: 89.756 | H13: 1.155 | I13: 23.941
A14: 2019/09/01 09:00:00 | B14: 0.072 | C14: 0.772 | D14: 4.255 | E14: 0 | F14: 9.765 | G14: 88.251 | H14: 1.172 | I14: 36.102
A15: 2019/09/01 10:00:00 | B15: 0.204 | C15: 0.189 | D15: 3.282 | E15: 0 | F15: 11.656 | G15: 83.862 | H15: 1.594 | I15: 76.359
A16: 2019/09/01 11:00:00 | B16: 0.228 | C16: 0.006 | D16: 3.064 | E16: 0 | F16: 14.977 | G16: 70.615 | H16: 1.856 | I16: 101.565
A17: 2019/09/01 12:00:00 | B17: 0.179 | C17: -0.16 | D17: 2.645 | E17: 0 | F17: 16.585 | G17: 58.574 | H17: 2.038 | I17: 136.396
A18: 2019/09/01 13:00:00 | B18: 0.076 | C18: -0.233 | D18: 3.002 | E18: 0 | F18: 17.698 | G18: 50.732 | H18: 1.688 | I18: 111.893
A19: 2019/09/01 14:00:00 | B19: 0.084 | C19: -0.273 | D19: 2.894 | E19: 0 | F19: 18.812 | G19: 42.441 | H19: 2.359 | I19: 110.374
A20: 2019/09/01 15:00:00 | B20: 0.014 | C20: -0.283 | D20: 3.446 | E20: 0 | F20: 18.991 | G20: 42.179 | H20: 2.406 | I20: 89.481
A21: 2019/09/01 16:00:00 | B21: 0.066 | C21: -0.286 | D21: 3.249 | E21: 0 | F21: 19.921 | G21: 39.606 | H21: 3.142 | I21: 90.532
A22: 2019/09/01 17:00:00 | B22: -0.04 | C22: -0.296 | D22: 3.318 | E22: 0 | F22: 19.836 | G22: 39.694 | H22: 3.381 | I22: 101.888
A23: 2019/09/01 18:00:00 | B23: -0.033 | C23: -0.372 | D23: 3.777 | E23: 0 | F23: 19.635 | G23: 41.677 | H23: 3.563 | I23: 100.101
A24: 2019/09/01 19:00:00 | B24: -0.037 | C24: -0.295 | D24: 3.845 | E24: 0 | F24: 19.109 | G24: 44.537 | H24: 2.808 | I24: 116.57
A25: 2019/09/01 20:00:00 | B25: -0.079 | C25: -0.283 | D25: 5.54 | E25: 0 | F25: 18.141 | G25: 51.187 | H25: 2.761 | I25: 138.691
A26: 2019/09/01 21:00:00 | B26: -0.113 | C26: -0.241 | D26: 5.943 | E26: 0 | F26: 16.376 | G26: 60.601 | H26: 1.821 | I26: 109.827
A27: 2019/09/01 22:00:00 | B27: -0.109 | C27: 0.197 | D27: 4.959 | E27: 0 | F27: 14.866 | G27: 61.819 | H27: 2.095 | I27: 112.435
A28: 2019/09/01 23:00:00 | B28: Z | C28: Z | D28: 4.949 | E28: 0 | F28: 13.755 | G28: 65.199 | H28: 2.226 | I28: 103.782
A29: 2019/09/02 00:00:00 | B29: -0.1 | C29: 0.727 | D29: 4.521 | E29: 0 | F29: 12.479 | G29: 69.179 | H29: 2.347 | I29: 112.196
A30: 2019/09/02 01:00:00 | B30: -0.066 | C30: 0.942 | D30: 5.485 | E30: 0 | F30: 12.688 | G30: 68.877 | H30: 3.685 | I30: 132.299
A31: 2019/09/02 02:00:00 | B31: -0.073 | C31: 0.986 | D31: 5.733 | E31: 0 | F31: 12.162 | G31: 71.687 | H31: 3.235 | I31: 103.102
A32: 2019/09/02 03:00:00 | B32: -0.075 | C32: 0.943 | D32: 5.581 | E32: 0 | F32: 11.621 | G32: 72.454 | H32: 3.848 | I32: 116.716
A33: 2019/09/02 04:00:00 | B33: 0.445 | C33: 1.994 | D33: 6.817 | E33: 17.49 | F33: 10.44 | G33: 70.006 | H33: 1.182 | I33: 159.509
A34: 2019/09/02 05:00:00 | B34: -0.115 | C34: 1.188 | D34: 9.135 | E34: 2.67 | F34: 11.375 | G34: 87.517 | H34: 2.267 | I34: 75.029
A35: 2019/09/02 06:00:00 | B35: -0.003 | C35: 1.024 | D35: 7.975 | E35: 0.51 | F35: 10.527 | G35: 88.077 | H35: 4.488 | I35: 55.126
A36: 2019/09/02 07:00:00 | B36: -0.062 | C36: 0.979 | D36: 7.645 | E36: 0 | F36: 9.613 | G36: 88.358 | H36: 4.447 | I36: 49.835
A37: 2019/09/02 08:00:00 | B37: -0.028 | C37: 1.045 | D37: 7.76 | E37: 0 | F37: 10.046 | G37: 88 | H37: 3.826 | I37: 48.291
A38: 2019/09/02 09:00:00 | B38: 0.061 | C38: 0.948 | D38: 6.771 | E38: 0 | F38: 11.603 | G38: 85.439 | H38: 1.321 | I38: 44.778
A39: 2019/09/02 10:00:00 | B39: 0.008 | C39: 0.937 | D39: 6.976 | E39: 0 | F39: 12.939 | G39: 84.336 | H39: 2.726 | I39: 258.63
A40: 2019/09/02 11:00:00 | B40: 0.019 | C40: 0.86 | D40: 6.969 | E40: 0 | F40: 15.071 | G40: 79.938 | H40: 3.69 | I40: 290.676
A41: 2019/09/02 12:00:00 | B41: 0.097 | C41: 0.772 | D41: 9.016 | E41: 0 | F41: 16.94 | G41: 74.771 | H41: 3.19 | I41: 303.104
A42: 2019/09/02 13:00:00 | B42: 0.103 | C42: 0.681 | D42: 6.494 | E42: 0 | F42: 18.069 | G42: 65.708 | H42: 3.668 | I42: 302.83
A43: 2019/09/02 14:00:00 | B43: 0.14 | C43: 0.552 | D43: 7.421 | E43: 0.07 | F43: 17.018 | G43: 64.816 | H43: 5.001 | I43: 286.905
A44: 2019/09/02 15:00:00 | B44: 0.144 | C44: 0.477 | D44: 5.164 | E44: 0 | F44: 18.37 | G44: 55.94 | H44: 4.531 | I44: 298.647
A45: 2019/09/02 16:00:00 | B45: 0.136 | C45: 0.365 | D45: 4.293 | E45: 0 | F45: 17.146 | G45: 50.357 | H45: 4.136 | I45: 311.417
A46: 2019/09/02 17:00:00 | B46: 0.052 | C46: 0.368 | D46: 4.336 | E46: 0 | F46: 16.503 | G46: 57.118 | H46: 4.776 | I46: 315.093
A47: 2019/09/02 18:00:00 | B47: 0.072 | C47: 0.252 | D47: 4.001 | E47: 0 | F47: 15.942 | G47: 59.65 | H47: 4.902 | I47: 316.729
A48: 2019/09/02 19:00:00 | B48: 0.083 | C48: 0.107 | D48: 3.593 | E48: 0 | F48: 15.915 | G48: 59.641 | H48: 4.647 | I48: 321.624
A49: 2019/09/02 20:00:00 | B49: 0.056 | C49: 0.061 | D49: 3.461 | E49: 0 | F49: 15.003 | G49: 63.718 | H49: 3.182 | I49: 318.762
A50: 2019/09/02 21:00:00 | B50: 0.145 | C50: 0.097 | D50: 3.165 | E50: 0 | F50: 13.275 | G50: 69.895 | H50: 2.07 | I50: 317.544
A51: 2019/09/02 22:00:00 | B51: Z | C51: Z | D51: 3.635 | E51: 0 | F51: 11.218 | G51: 78.685 | H51: 1.305 | I51: 300.967
A52: 2019/09/02 23:00:00 | B52: 0.097 | C52: 0.002 | D52: 3.901 | E52: 0 | F52: 9.637 | G52: 82.732 | H52: 0.878 | I52: 300.286
A53: 2019/09/03 00:00:00 | B53: 0.077 | C53: 0.173 | D53: 4.525 | E53: 0 | F53: 8.653 | G53: 84.967 | H53: 1.814 | I53: 278.786
A54: 2019/09/03 01:00:00 | B54: 0.062 | C54: 0.256 | D54: 4.463 | E54: 0 | F54: 8.578 | G54: 83.936 | H54: 1.196 | I54: 291.161
A55: 2019/09/03 02:00:00 | B55: 0.083 | C55: 0.232 | D55: 4.817 | E55: 0 | F55: 7.643 | G55: 84.586 | H55: 1.106 | I55: 293.925
A56: 2019/09/03 03:00:00 | B56: 0.062 | C56: 0.41 | D56: 5.009 | E56: 0 | F56: 7.542 | G56: 84.828 | H56: 1.098 | I56: 297.085
A57: 2019/09/03 04:00:00 | B57: 0.061 | C57: 0.571 | D57: 4.819 | E57: 0 | F57: 7.755 | G57: 84.25 | H57: 1.264 | I57: 293.649
A58: 2019/09/03 05:00:00 | B58: 0.091 | C58: 0.364 | D58: 4.971 | E58: 0 | F58: 7.615 | G58: 83.536 | H58: 1.067 | I58: 296.969
A59: 2019/09/03 06:00:00 | B59: 0.03 | C59: 0.413 | D59: 5.103 | E59: 0 | F59: 7.367 | G59: 83.037 | H59: 0.687 | I59: 261.276
A60: 2019/09/03 07:00:00 | B60: 0.008 | C60: 0.357 | D60: 6.46 | E60: 0 | F60: 6.47 | G60: 85.943 | H60: 0.887 | I60: 232.941
A61: 2019/09/03 08:00:00 | B61: 0.036 | C61: 0.357 | D61: 5.341 | E61: 0 | F61: 7.968 | G61: 83.321 | H61: 1.295 | I61: 228.26
A62: 2019/09/03 09:00:00 | B62: 0.107 | C62: 0.298 | D62: 4.416 | E62: 0 | F62: 11.766 | G62: 73.532 | H62: 2.903 | I62: 266.922
A63: 2019/09/03 10:00:00 | B63: 0.115 | C63: 0.208 | D63: 3.981 | E63: 0 | F63: 15.009 | G63: 64.731 | H63: 3.926 | I63: 273.069
A64: 2019/09/03 11:00:00 | B64: 0.757 | C64: 0.112 | D64: 3.621 | E64: 0 | F64: 18.243 | G64: 54.392 | H64: 4.297 | I64: 268.839
A65: 2019/09/03 12:00:00 | B65: 1.689 | C65: 0.114 | D65: 3.578 | E65: 0 | F65: 20.508 | G65: 46.511 | H65: 4.484 | I65: 264.501
A66: 2019/09/03 13:00:00 | B66: 0.992 | C66: 0.046 | D66: 3.634 | E66: 0 | F66: 21.913 | G66: 40.648 | H66: 4.803 | I66: 259.951
A67: 2019/09/03 14:00:00 | B67: 0.525 | C67: 0.226 | D67: 3.733 | E67: 0 | F67: 23.59 | G67: 36.417 | H67: 4.354 | I67: 254.006
A68: 2019/09/03 15:00:00 | B68: 0.206 | C68: 0.149 | D68: 3.941 | E68: 0 | F68: 24.561 | G68: 33.903 | H68: 4.347 | I68: 265.458
A69: 2019/09/03 16:00:00 | B69: 0.176 | C69: 0.04 | D69: 4.065 | E69: 0 | F69: 25.371 | G69: 31.764 | H69: 4.631 | I69: 267.943
A70: 2019/09/03 17:00:00 | B70: 0.211 | C70: 0.035 | D70: 3.964 | E70: 0 | F70: 25.743 | G70: 30.985 | H70: 4.597 | I70: 277.725
A71: 2019/09/03 18:00:00 | B71: 0.143 | C71: 0.031 | D71: 3.777 | E71: 0 | F71: 24.874 | G71: 29.969 | H71: 3.958 | I71: 278.64
A72: 2019/09/03 19:00:00 | B72: 0.077 | C72: 0.134 | D72: 3.805 | E72: 0 | F72: 24.182 | G72: 33.38 | H72: 1.879 | I72: 283.563
A73: 2019/09/03 20:00:00 | B73: 0.112 | C73: 0.229 | D73: 4.283 | E73: 0 | F73: 22.796 | G73: 41.171 | H73: 0.56 | I73: 317.917
A74: 2019/09/03 21:00:00 | B74: Z | C74: Z | D74: 4.909 | E74: 0 | F74: 20.33 | G74: 46.34 | H74: 0.496 | I74: 352.031
A75: 2019/09/03 22:00:00 | B75: 0.115 | C75: 0.288 | D75: 5.476 | E75: 0 | F75: 18.344 | G75: 52.967 | H75: 1.698 | I75: 48.601
A76: 2019/09/03 23:00:00 | B76: 0.027 | C76: 0.263 | D76: 5.16 | E76: 0 | F76: 16.558 | G76: 59.084 | H76: 1.834 | I76: 70.187
A77: 2019/09/04 00:00:00 | B77: 0.085 | C77: 0.316 | D77: 5.055 | E77: 0 | F77: 15.726 | G77: 62.089 | H77: 1.732 | I77: 50.388
A78: 2019/09/04 01:00:00 | B78: 0.102 | C78: 0.522 | D78: 6.515 | E78: 0 | F78: 14.959 | G78: 64.161 | H78: 2.2 | I78: 67.782
A79: 2019/09/04 02:00:00 | B79: 0.077 | C79: 0.263 | D79: 6.558 | E79: 0 | F79: 13.709 | G79: 64.624 | H79: 2.24 | I79: 77.342
A80: 2019/09/04 03:00:00 | B80: -0.001 | C80: 0.38 | D80: 6.818 | E80: 0 | F80: 13.025 | G80: 71.545 | H80: 2.12 | I80: 84.7
A81: 2019/09/04 04:00:00 | B81: -0.025 | C81: 0.454 | D81: 7.058 | E81: 0 | F81: 11.938 | G81: 75.954 | H81: 2.596 | I81: 87.729
A82: 2019/09/04 05:00:00 | B82: 0.05 | C82: 0.68 | D82: 7.595 | E82: 0 | F82: 10.945 | G82: 79.797 | H82: 2.463 | I82: 94.015
A83: 2019/09/04 06:00:00 | B83: 0.018 | C83: 0.58 | D83: 6.94 | E83: 0 | F83: 10.573 | G83: 78.571 | H83: 2.506 | I83: 128.565
A84: 2019/09/04 07:00:00 | B84: -0.008 | C84: 0.444 | D84: 6.928 | E84: 0 | F84: 10.777 | G84: 76.484 | H84: 1.322 | I84: 165.359
A85: 2019/09/04 08:00:00 | B85: 0.012 | C85: 0.522 | D85: 7.095 | E85: 0 | F85: 10.966 | G85: 77.036 | H85: 1.616 | I85: 115.454
A86: 2019/09/04 09:00:00 | B86: -0.061 | C86: 0.637 | D86: 6.957 | E86: 0.01 | F86: 10.759 | G86: 81.702 | H86: 2.109 | I86: 98.686
A87: 2019/09/04 10:00:00 | B87: 0.014 | C87: 0.698 | D87: 6.061 | E87: 0 | F87: 11.971 | G87: 78.389 | H87: 1.341 | I87: 83.723
A88: 2019/09/04 11:00:00 | B88: -0.014 | C88: 0.548 | D88: 5.412 | E88: 0 | F88: 14.54 | G88: 70.284 | H88: 2.16 | I88: 71.863
A89: 2019/09/04 12:00:00 | B89: 0.007 | C89: 0.514 | D89: 4.656 | E89: 0 | F89: 18.317 | G89: 58.472 | H89: 0.921 | I89: 40.073
A90: 2019/09/04 13:00:00 | B90: 0.075 | C90: 0.467 | D90: 4.512 | E90: 0 | F90: 22.102 | G90: 47.467 | H90: 1.421 | I90: 6.251
A91: 2019/09/04 14:00:00 | B91: 0.121 | C91: 0.248 | D91: 5.304 | E91: 0 | F91: 22.69 | G91: 44.957 | H91: 3.042 | I91: 31.609
A92: 2019/09/04 15:00:00 | B92: 0.171 | C92: 0.211 | D92: 6.268 | E92: 0 | F92: 23.153 | G92: 42.576 | H92: 3.088 | I92: 26.698
A93: 2019/09/04 16:00:00 | B93: 0.134 | C93: 0.192 | D93: 6.238 | E93: 0 | F93: 23.573 | G93: 40.194 | H93: 3.186 | I93: 44.222
A94: 2019/09/04 17:00:00 | B94: 0.194 | C94: 0.107 | D94: 5.841 | E94: 0 | F94: 21.912 | G94: 37.767 | H94: 3.439 | I94: 73.486
A95: 2019/09/04 18:00:00 | B95: 0.127 | C95: 0.083 | D95: 6.191 | E95: 0 | F95: 23.977 | G95: 42.301 | H95: 3.069 | I95: 103.344
A96: 2019/09/04 19:00:00 | B96: 0.143 | C96: 0.236 | D96: 7.061 | E96: 0 | F96: 22.965 | G96: 45.428 | H96: 1.396 | I96: 53.452
A97: 2019/09/04 20:00:00 | B97: Z | C97: Z | D97: 8.757 | E97: 0 | F97: 20.081 | G97: 55.54 | H97: 1.252 | I97: 26.931
A98: 2019/09/04 21:00:00 | B98: 0.038 | C98: 0.361 | D98: 10.272 | E98: 0 | F98: 17.789 | G98: 64.077 | H98: 1.412 | I98: 61.926
A99: 2019/09/04 22:00:00 | B99: 0.041 | C99: 0.16 | D99: 9.558 | E99: 0 | F99: 15.472 | G99: 73.248 | H99: 0.635 | I99: 41.383
A100: 2019/09/04 23:00:00 | B100: 0.073 | C100: -0.261 | D100: 9.745 | E100: 0 | F100: 13.401 | G100: 80.376 | H100: 0.639 | I100: 315.309
A101: 2019/09/05 00:00:00 | B101: 0.015 | C101: -0.305 | D101: 9.479 | E101: 0 | F101: 13.396 | G101: 80.344 | H101: 0.541 | I101: 355.526
A102: 2019/09/05 01:00:00 | B102: 0.03 | C102: -0.208 | D102: 9.816 | E102: 0 | F102: 12.944 | G102: 82.521 | H102: 1.347 | I102: 36.06
A103: 2019/09/05 02:00:00 | B103: 0.036 | C103: -0.11 | D103: 10.645 | E103: 0 | F103: 11.995 | G103: 85.732 | H103: 0.634 | I103: 17.653
A104: 2019/09/05 03:00:00 | B104: 0.014 | C104: 2.317 | D104: 7.521 | E104: 0 | F104: 10.12 | G104: 87.571 | H104: 0.807 | I104: 305.119
A105: 2019/09/05 04:00:00 | B105: 0.009 | C105: 6.402 | D105: 9.296 | E105: 0 | F105: 9.84 | G105: 88.968 | H105: 1.475 | I105: 297.657
A106: 2019/09/05 05:00:00 | B106: 0.097 | C106: 1.103 | D106: 12.839 | E106: 0.01 | F106: 12.061 | G106: 87.587 | H106: 2.538 | I106: 310.43
A107: 2019/09/05 06:00:00 | B107: 0.051 | C107: 0.498 | D107: 3.891 | E107: 0 | F107: 13.278 | G107: 81.705 | H107: 3.504 | I107: 317.481
A108: 2019/09/05 07:00:00 | B108: 0.056 | C108: 0.987 | D108: 2.578 | E108: 0.4 | F108: 12.852 | G108: 83.231 | H108: 2.504 | I108: 306.264
A109: 2019/09/05 08:00:00 | B109: 0.039 | C109: 0.348 | D109: 2.057 | E109: 0 | F109: 12.823 | G109: 81.46 | H109: 2.667 | I109: 322.658
A110: 2019/09/05 09:00:00 | B110: 0.074 | C110: 0.286 | D110: 2.163 | E110: 0 | F110: 13.663 | G110: 78.616 | H110: 2.621 | I110: 321.434
A111: 2019/09/05 10:00:00 | B111: 0.084 | C111: 0.35 | D111: 1.589 | E111: 0 | F111: 14.452 | G111: 69.315 | H111: 3.151 | I111: 323.353
A112: 2019/09/05 11:00:00 | B112: 0.139 | C112: 0.307 | D112: 1.638 | E112: 0 | F112: 16.433 | G112: 63.918 | H112: 3.107 | I112: 322.272
A113: 2019/09/05 12:00:00 | B113: 0.115 | C113: 0.34 | D113: 2.022 | E113: 0 | F113: 17.676 | G113: 58.43 | H113: 3.676 | I113: 317.621
A114: 2019/09/05 13:00:00 | B114: 0.116 | C114: 0.279 | D114: 2.325 | E114: 0 | F114: 18.549 | G114: 54.125 | H114: 3.302 | I114: 319.771
A115: 2019/09/05 14:00:00 | B115: 0.155 | C115: -0.072 | D115: 2.499 | E115: 0 | F115: 18.457 | G115: 42.799 | H115: 2.429 | I115: 328.939
A116: 2019/09/05 15:00:00 | B116: 0.215 | C116: 0.024 | D116: 2.159 | E116: 0 | F116: 19.271 | G116: 34.187 | H116: 2.052 | I116: 331.963
A117: 2019/09/05 16:00:00 | B117: 0.155 | C117: -0.047 | D117: 2.736 | E117: 0 | F117: 21.524 | G117: 34.43 | H117: 2.702 | I117: 324.19
A118: 2019/09/05 17:00:00 | B118: 0.106 | C118: -0.006 | D118: 2.578 | E118: 0 | F118: 21.677 | G118: 33.508 | H118: 2.506 | I118: 322.091
A119: 2019/09/05 18:00:00 | B119: 0.124 | C119: -0.017 | D119: 2.563 | E119: 0 | F119: 21.428 | G119: 34.552 | H119: 2.292 | I119: 324.88
A120: 2019/09/05 19:00:00 | B120: Z | C120: Z | D120: 3.088 | E120: 0 | F120: 20.793 | G120: 35.613 | H120: 1.668 | I120: 328.252
A121: 2019/09/05 20:00:00 | B121: 0.072 | C121: 0.108 | D121: 3.476 | E121: 0 | F121: 19.099 | G121: 40.692 | H121: 0.942 | I121: 324.721
A122: 2019/09/05 21:00:00 | B122: 0.078 | C122: 0.147 | D122: 3.553 | E122: 0 | F122: 15.936 | G122: 50.701 | H122: 0.803 | I122: 304.334
A123: 2019/09/05 22:00:00 | B123: 0.023 | C123: 0.164 | D123: 3.627 | E123: 0 | F123: 14.554 | G123: 56.044 | H123: 0.814 | I123: 305.891
A124: 2019/09/05 23:00:00 | B124: 0.064 | C124: 0.571 | D124: 4.236 | E124: 0 | F124: 13.337 | G124: 60.603 | H124: 0.824 | I124: 306.464
A125: 2019/09/06 00:00:00 | B125: 0.061 | C125: 0.507 | D125: 3.567 | E125: 0 | F125: 12.914 | G125: 60.882 | H125: 0.772 | I125: 295.192
A126: 2019/09/06 01:00:00 | B126: 0.116 | C126: 0.611 | D126: 4.762 | E126: 0 | F126: 10.816 | G126: 69.886 | H126: 0.946 | I126: 276.087
A127: 2019/09/06 02:00:00 | B127: 0.065 | C127: 0.254 | D127: 4.552 | E127: 0 | F127: 11.748 | G127: 65.09 | H127: 0.975 | I127: 306.866
A128: 2019/09/06 03:00:00 | B128: 0.076 | C128: 0.505 | D128: 4.704 | E128: 0 | F128: 10.726 | G128: 70.163 | H128: 1.069 | I128: 299.873
A129: 2019/09/06 04:00:00 | B129: 0.059 | C129: 0.505 | D129: 8.054 | E129: 0 | F129: 8.041 | G129: 78.769 | H129: 1.035 | I129: 263.956
A130: 2019/09/06 05:00:00 | B130: 0.066 | C130: 1.153 | D130: 6.604 | E130: 0 | F130: 7.88 | G130: 80.134 | H130: 0.613 | I130: 27.801
A131: 2019/09/06 06:00:00 | B131: 0.057 | C131: 1.919 | D131: 5.391 | E131: 0 | F131: 7.903 | G131: 80.939 | H131: 0.338 | I131: 37.654
A132: 2019/09/06 07:00:00 | B132: 0.052 | C132: 1.245 | D132: 5.347 | E132: 0 | F132: 8.687 | G132: 76.078 | H132: 0.315 | I132: 356.904
A133: 2019/09/06 08:00:00 | B133: 0.137 | C133: 0.985 | D133: 8.405 | E133: 0 | F133: 8.288 | G133: 79.82 | H133: 0.408 | I133: 238.971
A134: 2019/09/06 09:00:00 | B134: 0.305 | C134: 0.579 | D134: 7.975 | E134: 0 | F134: 12.436 | G134: 65.758 | H134: 0.322 | I134: 55.999
A135: 2019/09/06 10:00:00 | B135: 0.421 | C135: 0.632 | D135: 3.536 | E135: 0 | F135: 14.631 | G135: 61.385 | H135: 1.345 | I135: 76.537
A136: 2019/09/06 11:00:00 | B136: 0.334 | C136: 0.506 | D136: 3.429 | E136: 0 | F136: 17.274 | G136: 51.156 | H136: 1.679 | I136: 82.206
A137: 2019/09/06 12:00:00 | B137: 0.237 | C137: 0.392 | D137: 3.083 | E137: 0 | F137: 17.981 | G137: 40.043 | H137: 1.686 | I137: 100.664
A138: 2019/09/06 13:00:00 | B138: 0.266 | C138: 0.562 | D138: 3.6 | E138: 0 | F138: 19.432 | G138: 37.801 | H138: 1.254 | I138: 109.889
A139: 2019/09/06 14:00:00 | B139: 0.219 | C139: 0.414 | D139: 4.187 | E139: 0 | F139: 20.828 | G139: 36.161 | H139: 1.578 | I139: 85.811
A140: 2019/09/06 15:00:00 | B140: 0.158 | C140: 0.465 | D140: 4.168 | E140: 0 | F140: 21.121 | G140: 34.524 | H140: 1.157 | I140: 55.156
A141: 2019/09/06 16:00:00 | B141: 0.243 | C141: -0.223 | D141: 3.878 | E141: 0 | F141: 19.875 | G141: 31.148 | H141: 1.46 | I141: 73.142
A142: 2019/09/06 17:00:00 | B142: 0.242 | C142: -0.307 | D142: 4.127 | E142: 0 | F142: 19.934 | G142: 32.248 | H142: 2.166 | I142: 68.919
A143: 2019/09/06 18:00:00 | B143: Z | C143: Z | D143: 5.56 | E143: 0 | F143: 20.439 | G143: 35.174 | H143: 2.503 | I143: 64.733
A144: 2019/09/06 19:00:00 | B144: 0.095 | C144: 0.675 | D144: 5.511 | E144: 0 | F144: 19.17 | G144: 40.585 | H144: 2.349 | I144: 85.377
A145: 2019/09/06 20:00:00 | B145: 0.088 | C145: 0.674 | D145: 7.717 | E145: 0 | F145: 17.398 | G145: 46.939 | H145: 2.212 | I145: 86.789
A146: 2019/09/06 21:00:00 | B146: 0.087 | C146: 0.807 | D146: 5.531 | E146: 0 | F146: 15.909 | G146: 52.275 | H146: 1.615 | I146: 99.944
A147: 2019/09/06 22:00:00 | B147: 0.115 | C147: 0.905 | D147: 4.209 | E147: 0 | F147: 15.042 | G147: 56.124 | H147: 1.776 | I147: 99.94
A148: 2019/09/06 23:00:00 | B148: 0.071 | C148: 0.823 | D148: 5.619 | E148: 0 | F148: 13.659 | G148: 55.255 | H148: 1.704 | I148: 111.751
A149: 2019/09/07 00:00:00 | B149: 0.09 | C149: 1.131 | D149: 5.158 | E149: 0 | F149: 13.652 | G149: 57.71 | H149: 1.918 | I149: 106.286
A150: 2019/09/07 01:00:00 | B150: 0.057 | C150: 0.05 | D150: 5.169 | E150: 0 | F150: 13.258 | G150: 58.328 | H150: 2.055 | I150: 110.726
A151: 2019/09/07 02:00:00 | B151: 0.063 | C151: -0.255 | D151: 6.373 | E151: 0 | F151: 12.007 | G151: 62.485 | H151: 1.978 | I151: 94.588
A152: 2019/09/07 03:00:00 | B152: 0.043 | C152: -0.195 | D152: 5.989 | E152: 0 | F152: 11.345 | G152: 64.345 | H152: 2.227 | I152: 95.961
A153: 2019/09/07 04:00:00 | B153: 0.065 | C153: -0.214 | D153: 5.617 | E153: 0 | F153: 10.901 | G153: 66.29 | H153: 2.372 | I153: 96.211
A154: 2019/09/07 05:00:00 | B154: 0.036 | C154: -0.185 | D154: 5.08 | E154: 0 | F154: 10.679 | G154: 68.775 | H154: 2.273 | I154: 90.956
A155: 2019/09/07 06:00:00 | B155: 0.112 | C155: -0.197 | D155: 4.078 | E155: 0 | F155: 9.415 | G155: 65.345 | H155: 1.834 | I155: 113.286
A156: 2019/09/07 07:00:00 | B156: -0.022 | C156: -0.115 | D156: 5.413 | E156: 0 | F156: 10.013 | G156: 72.519 | H156: 1.837 | I156: 104.81
A157: 2019/09/07 08:00:00 | B157: 0.001 | C157: -0.125 | D157: 5.026 | E157: 0 | F157: 9.649 | G157: 75.019 | H157: 0.943 | I157: 101.09
A158: 2019/09/07 09:00:00 | B158: 0.006 | C158: -0.026 | D158: 4.428 | E158: 0 | F158: 11.149 | G158: 70.125 | H158: 1.624 | I158: 139.771
A159: 2019/09/07 10:00:00 | B159: 0.077 | C159: -0.016 | D159: 4.809 | E159: 0 | F159: 13.708 | G159: 57.649 | H159: 2.745 | I159: 181.379
A160: 2019/09/07 11:00:00 | B160: 0.057 | C160: -0.08 | D160: 5.544 | E160: 0 | F160: 17.175 | G160: 50.771 | H160: 3.613 | I160: 176.281
A161: 2019/09/07 12:00:00 | B161: 0.111 | C161: -0.058 | D161: 6.888 | E161: 0 | F161: 19.105 | G161: 44.338 | H161: 3.761 | I161: 173.358
A162: 2019/09/07 13:00:00 | B162: 0.128 | C162: -0.066 | D162: 6.364 | E162: 0 | F162: 20.398 | G162: 39.562 | H162: 4.035 | I162: 189.831
A163: 2019/09/07 14:00:00 | B163: 0.125 | C163: 0.074 | D163: 6.248 | E163: 0 | F163: 21.309 | G163: 36.36 | H163: 4.154 | I163: 201.031
A164: 2019/09/07 15:00:00 | B164: 0.052 | C164: 0.101 | D164: 6.055 | E164: 0 | F164: 22.036 | G164: 34.611 | H164: 4.092 | I164: 200.146
A165: 2019/09/07 16:00:00 | B165: 0.09 | C165: 0.062 | D165: 5.749 | E165: 0 | F165: 22.527 | G165: 33.567 | H165: 4.417 | I165: 205.224
A166: 2019/09/07 17:00:00 | B166: Z | C166: Z | D166: 6.405 | E166: 0 | F166: 21.3 | G166: 33.053 | H166: 3.806 | I166: 209.869
A167: 2019/09/07 18:00:00 | B167: 0.077 | C167: 0.188 | D167: 5.737 | E167: 0 | F167: 21.655 | G167: 32.559 | H167: 4.145 | I167: 208.617
A168: 2019/09/07 19:00:00 | B168: 0.047 | C168: 0.092 | D168: 5.742 | E168: 0 | F168: 21.656 | G168: 36.123 | H168: 3.973 | I168: 206.559
A169: 2019/09/07 20:00:00 | B169: -0.015 | C169: 0.167 | D169: 10.691 | E169: 0 | F169: 18.916 | G169: 44.225 | H169: 2.032 | I169: 193.674
A170: 2019/09/07 21:00:00 | B170: 0.105 | C170: 0.214 | D170: 15.541 | E170: 0 | F170: 15.431 | G170: 55.095 | H170: 1.714 | I170: 197.491
A171: 2019/09/07 22:00:00 | B171: 0.023 | C171: 0.3 | D171: 15.042 | E171: 0 | F171: 14.04 | G171: 59.802 | H171: 2.789 | I171: 205.774
A172: 2019/09/07 23:00:00 | B172: -0.072 | C172: 0.215 | D172: 7.644 | E172: 0 | F172: 14.357 | G172: 59.75 | H172: 3.677 | I172: 205.284
A173: 2019/09/08 00:00:00 | B173: 0.001 | C173: 0.138 | D173: 5.997 | E173: 0 | F173: 14.281 | G173: 59.618 | H173: 4.516 | I173: 209.267
A174: 2019/09/08 01:00:00 | B174: -0.002 | C174: 0.03 | D174: 5.751 | E174: 0 | F174: 13.16 | G174: 64.204 | H174: 4.941 | I174: 211.657
A175: 2019/09/08 02:00:00 | B175: 0.015 | C175: 0.062 | D175: 5.799 | E175: 0 | F175: 11.724 | G175: 66.337 | H175: 4.79 | I175: 213.294
A176: 2019/09/08 03:00:00 | B176: -0.018 | C176: 0.339 | D176: 5.686 | E176: 0 | F176: 11.358 | G176: 71.73 | H176: 5.032 | I176: 213.639
A177: 2019/09/08 04:00:00 | B177: 0.043 | C177: 0.281 | D177: 4.968 | E177: 0 | F177: 10.341 | G177: 73.639 | H177: 4.611 | I177: 214.899
A178: 2019/09/08 05:00:00 | B178: 0.012 | C178: 0.105 | D178: 6.128 | E178: 0 | F178: 8.936 | G178: 76.815 | H178: 2.257 | I178: 215.898
A179: 2019/09/08 06:00:00 | B179: 0.007 | C179: 0.202 | D179: 6.206 | E179: 0 | F179: 8.028 | G179: 82.253 | H179: 1.16 | I179: 206.474
A180: 2019/09/08 07:00:00 | B180: 0.027 | C180: 0.132 | D180: 7.613 | E180: 0 | F180: 7.292 | G180: 84.664 | H180: 1.169 | I180: 137.812
A181: 2019/09/08 08:00:00 | B181: -0.009 | C181: 0.258 | D181: 8.248 | E181: 0 | F181: 8.064 | G181: 83.543 | H181: 1.542 | I181: 188.77
A182: 2019/09/08 09:00:00 | B182: 0.028 | C182: 0.161 | D182: 5.646 | E182: 0 | F182: 9.427 | G182: 79.418 | H182: 1.481 | I182: 197.507
A183: 2019/09/08 10:00:00 | B183: 0.019 | C183: 0.214 | D183: 4.564 | E183: 0 | F183: 11.036 | G183: 74.46 | H183: 3.25 | I183: 200.527
A184: 2019/09/08 11:00:00 | B184: 0.019 | C184: 0.135 | D184: 4.032 | E184: 0 | F184: 12.543 | G184: 69.922 | H184: 3.52 | I184: 176.203
A185: 2019/09/08 12:00:00 | B185: 0.076 | C185: 0.101 | D185: 3.057 | E185: 0 | F185: 14.965 | G185: 61.873 | H185: 3.331 | I185: 141.817
A186: 2019/09/08 13:00:00 | B186: 0.13 | C186: 0.065 | D186: 3.095 | E186: 0 | F186: 16.055 | G186: 57.783 | H186: 3.695 | I186: 124.784
A187: 2019/09/08 14:00:00 | B187: 0.064 | C187: 0.103 | D187: 3.331 | E187: 0 | F187: 16.605 | G187: 56.59 | H187: 3.695 | I187: 135.888
A188: 2019/09/08 15:00:00 | B188: 0.078 | C188: 0.148 | D188: 3.35 | E188: 0 | F188: 17.863 | G188: 52.9 | H188: 2.849 | I188: 126.271
A189: 2019/09/08 16:00:00 | B189: Z | C189: Z | D189: 3.732 | E189: 0 | F189: 19.018 | G189: 49.836 | H189: 2.95 | I189: 119.756
A190: 2019/09/08 17:00:00 | B190: 0.138 | C190: 0.187 | D190: 4.089 | E190: 0 | F190: 19.275 | G190: 48.615 | H190: 3.285 | I190: 115.105
A191: 2019/09/08 18:00:00 | B191: 0.1 | C191: 0.144 | D191: 3.95 | E191: 0 | F191: 18.571 | G191: 46.903 | H191: 3.607 | I191: 96.485
A192: 2019/09/08 19:00:00 | B192: 0.089 | C192: 0.059 | D192: 4.012 | E192: 0 | F192: 18.821 | G192: 49.833 | H192: 3.896 | I192: 92.651
A193: 2019/09/08 20:00:00 | B193: 0.067 | C193: 0.077 | D193: 3.941 | E193: 0 | F193: 16.628 | G193: 52.652 | H193: 2.594 | I193: 84.87
A194: 2019/09/08 21:00:00 | B194: 0.014 | C194: 0.149 | D194: 5.083 | E194: 0 | F194: 14.775 | G194: 61.246 | H194: 2.21 | I194: 80.474
A195: 2019/09/08 22:00:00 | B195: 0.047 | C195: 0.173 | D195: 3.994 | E195: 0 | F195: 13.922 | G195: 68.096 | H195: 2.151 | I195: 79.251
A196: 2019/09/08 23:00:00 | B196: 0.008 | C196: 0.227 | D196: 3.714 | E196: 0 | F196: 13.711 | G196: 69.317 | H196: 2.44 | I196: 73.947
A197: 2019/09/09 00:00:00 | B197: 0.011 | C197: 0.509 | D197: 6.523 | E197: 0 | F197: 13.498 | G197: 75.68 | H197: 3.952 | I197: 65.645
A198: 2019/09/09 01:00:00 | B198: 0.018 | C198: 0.45 | D198: 6.197 | E198: 0 | F198: 12.428 | G198: 79.069 | H198: 3.972 | I198: 68.681
A199: 2019/09/09 02:00:00 | B199: 0.048 | C199: 0.396 | D199: 6.645 | E199: 0 | F199: 11.224 | G199: 82.875 | H199: 3.222 | I199: 71.908
A200: 2019/09/09 03:00:00 | B200: 0.028 | C200: 0.43 | D200: 6.979 | E200: 0 | F200: 10.715 | G200: 84.52 | H200: 3.109 | I200: 73.357
A201: 2019/09/09 04:00:00 | B201: 0.027 | C201: 0.362 | D201: 7.7 | E201: 0 | F201: 10.178 | G201: 85.701 | H201: 2.778 | I201: 75.447
... 531 more rows

Sheet Maidstone
A1: =Kerrobert!A1 -> Group: Global WYAMZ - Monthly Monthly: 01/2019 Type: AVG 1 Hr.
A3: Date & Time | B3: Maidstone | C3: Maidstone | D3: Maidstone | E3: Maidstone | F3: Maidstone | G3: Maidstone | H3: Maidstone | I3: Maidstone | J3: Maidstone | K3: Maidstone | L3: Maidstone
B4: SO2 | C4: NO | D4: NO2 | E4: NOX | F4: H2S | G4: PM25 | H4: PRECIP | I4: TEMPERAT | J4: RH | K4: WS | L4: WD
B5: ppb | C5: ppb | D5: ppb | E5: ppb | F5: ppb | G5: ug/m3(L) | H5: mm | I5: C° | J5: %RH | K5: m/s | L5: Deg
A6: 2019/09/01 01:00:00 | B6: 0.218 | C6: 1.648 | D6: 4.729 | E6: 6.377 | F6: 0.303 | G6: 3.764 | H6: 0 | I6: 6.789 | J6: 89.673 | K6: 0.741 | L6: 330.024 | M6: 3 | N6: A
A7: 2019/09/01 02:00:00 | B7: 0.193 | C7: 1.124 | D7: 4.128 | E7: 5.253 | F7: 0.302 | G7: 3.1 | H7: 0 | I7: 7.071 | J7: 89.82 | K7: 0.854 | L7: 338.897 | M7: 4 | N7: A
A8: 2019/09/01 03:00:00 | B8: 0.197 | C8: 1.428 | D8: 5.212 | E8: 6.639 | F8: 0.359 | G8: 3.248 | H8: 0 | I8: 6.67 | J8: 89.781 | K8: 0.235 | L8: 79.414 | M8: 4 | N8: A
A9: 2019/09/01 04:00:00 | B9: 0.123 | C9: 3.043 | D9: 5.543 | E9: 8.585 | F9: 0.402 | G9: 3.227 | H9: 0 | I9: 6.811 | J9: 89.901 | K9: 1.534 | L9: 337.236 | M9: 4 | N9: A
A10: 2019/09/01 05:00:00 | B10: 0.048 | C10: 1.276 | D10: 4.423 | E10: 5.7 | F10: 0.632 | G10: 2.817 | H10: 0 | I10: 5.883 | J10: 89.64 | K10: 1.516 | L10: 336.104 | M10: 3 | N10: A
A11: 2019/09/01 06:00:00 | B11: 0.099 | C11: 17.621 | D11: 5.896 | E11: 23.517 | F11: 1.411 | G11: 3.861 | H11: 0 | I11: 5.042 | J11: 89.567 | K11: 1.979 | L11: 337.9 | M11: 3 | N11: A
A12: 2019/09/01 07:00:00 | B12: -0.019 | C12: 0.651 | D12: 4.583 | E12: 5.233 | F12: 1.171 | G12: 3.032 | H12: 0 | I12: 4.834 | J12: 89.667 | K12: 2.144 | L12: 334.542 | M12: 3 | N12: A
A13: 2019/09/01 08:00:00 | B13: 0.098 | C13: 2.823 | D13: 3.417 | E13: 6.239 | F13: 1.119 | G13: 2.477 | H13: 0 | I13: 5.122 | J13: 89.704 | K13: 1.504 | L13: 335.458 | M13: A | N13: A
A14: 2019/09/01 09:00:00 | B14: 0.037 | C14: 2.994 | D14: 2.325 | E14: 5.32 | F14: 1.016 | G14: 2.433 | H14: 0 | I14: 8.364 | J14: 89.74 | K14: 0.731 | L14: 61.055 | M14: 2 | N14: A
A15: 2019/09/01 10:00:00 | B15: 0.19 | C15: 0.512 | D15: 1.048 | E15: 1.561 | F15: 0.492 | G15: 1.187 | H15: 0 | I15: 11.923 | J15: 79.022 | K15: 1.705 | L15: 106.493 | M15: 2 | N15: A
A16: 2019/09/01 11:00:00 | B16: 1.848 | C16: 0.447 | D16: 1.04 | E16: 1.487 | F16: 0.223 | G16: 1.528 | H16: 0 | I16: 14.386 | J16: 66.771 | K16: 2.082 | L16: 120.997 | M16: 2 | N16: A
A17: 2019/09/01 12:00:00 | B17: 1.478 | C17: 0.297 | D17: 0.791 | E17: 1.089 | F17: 0.207 | G17: 2.651 | H17: 0 | I17: 16.222 | J17: 59.745 | K17: 2.09 | L17: 128.38 | M17: 2 | N17: A
A18: 2019/09/01 13:00:00 | B18: 1.739 | C18: 0.123 | D18: 0.656 | E18: 0.778 | F18: 0.197 | G18: 1.992 | H18: 0 | I18: 17.859 | J18: 54.483 | K18: 1.653 | L18: 132.283 | M18: 2 | N18: A
A19: 2019/09/01 14:00:00 | B19: 2.176 | C19: 0.046 | D19: 0.625 | E19: 0.672 | F19: 0.241 | G19: 5.564 | H19: 0 | I19: 19.086 | J19: 49.271 | K19: 1.363 | L19: 106.906 | M19: 2 | N19: A
A20: 2019/09/01 15:00:00 | B20: 1.294 | C20: -0.03 | D20: 0.552 | E20: 0.521 | F20: 0.158 | G20: 3.293 | H20: 0 | I20: 19.835 | J20: 44.9 | K20: 1.811 | L20: 102.591 | M20: 2 | N20: A
A21: 2019/09/01 16:00:00 | B21: 1.05 | C21: 0.02 | D21: 0.547 | E21: 0.568 | F21: 0.104 | G21: 3.321 | H21: 0 | I21: 19.847 | J21: 43.603 | K21: 1.59 | L21: 90.432 | M21: 2 | N21: A
A22: 2019/09/01 17:00:00 | B22: 1.1 | C22: 0.012 | D22: 0.597 | E22: 0.61 | F22: 0.111 | G22: 3.528 | H22: 0 | I22: 19.577 | J22: 44.486 | K22: 1.454 | L22: 102.901 | M22: 2 | N22: A
A23: 2019/09/01 18:00:00 | B23: 0.375 | C23: -0.021 | D23: 0.757 | E23: 0.736 | F23: 0.123 | G23: AF | H23: 0 | I23: 18.777 | J23: 47.146 | K23: 1.03 | L23: 133.011 | M23: 2 | N23: A
A24: 2019/09/01 19:00:00 | B24: 0.17 | C24: 0.131 | D24: 1.589 | E24: 1.72 | F24: 0.171 | G24: AF | H24: 0 | I24: 17.963 | J24: 51.512 | K24: 1.257 | L24: 106.502 | M24: 2 | N24: A
A25: 2019/09/01 20:00:00 | B25: 0.191 | C25: 0.011 | D25: 1.257 | E25: 1.27 | F25: 0.227 | G25: AF | H25: 0 | I25: 16.85 | J25: 56.731 | K25: 2.352 | L25: 97.941 | M25: 2 | N25: A
A26: 2019/09/01 21:00:00 | B26: 0.086 | C26: -0.08 | D26: 0.823 | E26: 0.743 | F26: 0.252 | G26: AF | H26: 0 | I26: 15.707 | J26: 61.235 | K26: 2.932 | L26: 105.99 | M26: 2 | N26: A
A27: 2019/09/01 22:00:00 | B27: 0.043 | C27: 0.044 | D27: 0.861 | E27: 0.904 | F27: 0.155 | G27: AF | H27: 0 | I27: 14.702 | J27: 64.469 | K27: 2.876 | L27: 107.67 | M27: 4 | N27: A
A28: 2019/09/01 23:00:00 | B28: Z | C28: Z | D28: Z | E28: Z | F28: Z | G28: AF | H28: 0 | I28: 14.268 | J28: 65.663 | K28: 2.952 | L28: 116.955 | M28: 4 | N28: A
A29: 2019/09/02 00:00:00 | B29: 0.125 | C29: -0.045 | D29: 0.94 | E29: 0.895 | F29: 0.653 | G29: AF | H29: 0 | I29: 14.075 | J29: 62.539 | K29: 3.571 | L29: 120.226 | M29: 4 | N29: A
A30: 2019/09/02 01:00:00 | B30: 0.126 | C30: -0.074 | D30: 0.807 | E30: 0.733 | F30: 0.497 | G30: AF | H30: 0 | I30: 13.905 | J30: 62.395 | K30: 3.367 | L30: 122.701 | M30: 6 | N30: A
A31: 2019/09/02 02:00:00 | B31: 0.4 | C31: -0.032 | D31: 0.884 | E31: 0.851 | F31: 0.482 | G31: AF | H31: 0 | I31: 13.625 | J31: 63.938 | K31: 3.208 | L31: 124.803 | M31: 6 | N31: A
A32: 2019/09/02 03:00:00 | B32: 0.72 | C32: -0.005 | D32: 1.23 | E32: 1.224 | F32: 0.601 | G32: AF | H32: 0 | I32: 13.248 | J32: 67.021 | K32: 3.11 | L32: 133.339 | M32: 7 | N32: A
A33: 2019/09/02 04:00:00 | B33: 0.732 | C33: 0.252 | D33: 1.104 | E33: 1.355 | F33: 0.546 | G33: AF | H33: 0 | I33: 12.593 | J33: 71.347 | K33: 3.176 | L33: 135.829 | M33: 9 | N33: A
A34: 2019/09/02 05:00:00 | B34: 1.173 | C34: -0.035 | D34: 1.634 | E34: 1.599 | F34: 0.58 | G34: AF | H34: 0 | I34: 12.149 | J34: 75.619 | K34: 2.831 | L34: 127.665 | M34: 8 | N34: A
A35: 2019/09/02 06:00:00 | B35: 0.839 | C35: 0.035 | D35: 1.143 | E35: 1.178 | F35: 0.525 | G35: AF | H35: 0.37 | I35: 11.525 | J35: 81.865 | K35: 2.537 | L35: 118.827 | M35: 9 | N35: A
A36: 2019/09/02 07:00:00 | B36: 0.095 | C36: -0.014 | D36: 1.16 | E36: 1.145 | F36: 0.754 | G36: AF | H36: 0.03 | I36: 11.089 | J36: 85.725 | K36: 1.999 | L36: 126.478 | M36: A | N36: A
A37: 2019/09/02 08:00:00 | B37: 0.113 | C37: -0.009 | D37: 1.195 | E37: 1.184 | F37: 0.752 | G37: AF | H37: 0.06 | I37: 11.113 | J37: 87.44 | K37: 1.885 | L37: 147.484 | M37: 19 | N37: A
A38: 2019/09/02 09:00:00 | B38: 0.03 | C38: 0.054 | D38: 1.512 | E38: 1.566 | F38: 0.607 | G38: AF | H38: 2.1 | I38: 11.368 | J38: 88.097 | K38: 1.395 | L38: 143.39 | M38: 21 | N38: A
A39: 2019/09/02 10:00:00 | B39: 0.026 | C39: 0.1 | D39: 1.203 | E39: 1.302 | F39: 1.156 | G39: AF | H39: 2.06 | I39: 11.619 | J39: 88.515 | K39: 1.679 | L39: 160.755 | M39: 19 | N39: A
A40: 2019/09/02 11:00:00 | B40: -0.097 | C40: 0.244 | D40: 1.12 | E40: 1.362 | F40: 0.607 | G40: AF | H40: 0 | I40: 12.646 | J40: 86.66 | K40: 1.609 | L40: 196.028 | M40: 14 | N40: A
A41: 2019/09/02 12:00:00 | B41: 0.049 | C41: 0.178 | D41: 1.079 | E41: 1.255 | F41: 0.478 | G41: AF | H41: 0 | I41: 14.087 | J41: 82.354 | K41: 2.276 | L41: 288.284 | M41: 11 | N41: A
A42: 2019/09/02 13:00:00 | B42: 0.063 | C42: 0.177 | D42: 1.11 | E42: 1.285 | F42: 0.23 | G42: AF | H42: 0 | I42: 15.316 | J42: 77.168 | K42: 3.061 | L42: 293.589 | M42: 10 | N42: A
A43: 2019/09/02 14:00:00 | B43: 0.072 | C43: 0.116 | D43: 0.75 | E43: 0.865 | F43: 0.042 | G43: AF | H43: 0 | I43: 16.641 | J43: 65.632 | K43: 3.814 | L43: 299.924 | M43: 10 | N43: A
A44: 2019/09/02 15:00:00 | B44: 0.011 | C44: -0.006 | D44: 0.688 | E44: 0.68 | F44: 0.056 | G44: AF | H44: 0 | I44: 15.442 | J44: 67.944 | K44: 4.033 | L44: 298.069 | M44: 10 | N44: A
A45: 2019/09/02 16:00:00 | B45: -0.009 | C45: -0.008 | D45: 0.649 | E45: 0.639 | F45: 0.227 | G45: AF | H45: 0 | I45: 15.039 | J45: 72.544 | K45: 3.653 | L45: 297.992 | M45: 9 | N45: A
A46: 2019/09/02 17:00:00 | B46: -0.043 | C46: 0.091 | D46: 0.664 | E46: 0.754 | F46: 0.173 | G46: AF | H46: 0 | I46: 15.255 | J46: 72.766 | K46: 3.99 | L46: 303.559 | M46: 9 | N46: A
A47: 2019/09/02 18:00:00 | B47: -0.037 | C47: 0.045 | D47: 0.627 | E47: 0.669 | F47: 0.009 | G47: AF | H47: 0 | I47: 15.72 | J47: 70.388 | K47: 4.438 | L47: 301.298 | M47: 9 | N47: A
A48: 2019/09/02 19:00:00 | B48: -0.104 | C48: 0.04 | D48: 0.563 | E48: 0.602 | F48: 0.08 | G48: AF | H48: 0 | I48: 15.157 | J48: 71.661 | K48: 4.298 | L48: 304.235 | M48: 9 | N48: A
A49: 2019/09/02 20:00:00 | B49: 0.024 | C49: 0 | D49: 0.639 | E49: 0.636 | F49: 0.12 | G49: AF | H49: 0 | I49: 14.893 | J49: 71.021 | K49: 3.954 | L49: 310.036 | M49: 9 | N49: A
A50: 2019/09/02 21:00:00 | B50: -0.082 | C50: 0.021 | D50: 0.664 | E50: 0.683 | F50: 0.03 | G50: AF | H50: 0 | I50: 14.097 | J50: 71.372 | K50: 3.252 | L50: 309.814 | M50: 9 | N50: A
A51: 2019/09/02 22:00:00 | B51: Z | C51: Z | D51: Z | E51: Z | F51: Z | G51: AF | H51: 0 | I51: 12.134 | J51: 79.745 | K51: 1.331 | L51: 304.008 | M51: 9 | N51: A
A52: 2019/09/02 23:00:00 | B52: -0.039 | C52: 0.022 | D52: 1.616 | E52: 1.636 | F52: 0.476 | G52: AF | H52: 0 | I52: 11.307 | J52: 80.368 | K52: 2.068 | L52: 290.476 | M52: 4 | N52: A
A53: 2019/09/03 00:00:00 | B53: 0.032 | C53: -0.005 | D53: 1.645 | E53: 1.639 | F53: 0.232 | G53: AF | H53: 0 | I53: 10.472 | J53: 80.761 | K53: 2.065 | L53: 302.388 | M53: 2 | N53: A
A54: 2019/09/03 01:00:00 | B54: -0.003 | C54: 0.02 | D54: 1.39 | E54: 1.409 | F54: 0.169 | G54: AF | H54: 0 | I54: 9.61 | J54: 82.577 | K54: 1.166 | L54: 293.803 | M54: 2 | N54: A
A55: 2019/09/03 02:00:00 | B55: 0.023 | C55: 0.121 | D55: 3.081 | E55: 3.2 | F55: 0.448 | G55: AF | H55: 0 | I55: 8.186 | J55: 86.685 | K55: 1.118 | L55: 317.375 | M55: 3 | N55: A
A56: 2019/09/03 03:00:00 | B56: -0.003 | C56: 0.054 | D56: 2.86 | E56: 2.914 | F56: 0.512 | G56: AF | H56: 0 | I56: 8.248 | J56: 86.826 | K56: 1.841 | L56: 289.003 | M56: 3 | N56: A
A57: 2019/09/03 04:00:00 | B57: -0.025 | C57: 0.075 | D57: 3.167 | E57: 3.24 | F57: 0.422 | G57: AF | H57: 0 | I57: 8.316 | J57: 85.931 | K57: 2.449 | L57: 268.835 | M57: 3 | N57: A
A58: 2019/09/03 05:00:00 | B58: 0.103 | C58: 0.082 | D58: 2.695 | E58: 2.776 | F58: 0.46 | G58: AF | H58: 0 | I58: 7.637 | J58: 87.045 | K58: 1.231 | L58: 265.4 | M58: 3 | N58: A
A59: 2019/09/03 06:00:00 | B59: 0.088 | C59: 0.161 | D59: 2.492 | E59: 2.651 | F59: 0.887 | G59: AF | H59: 0 | I59: 6.558 | J59: 88.009 | K59: 0.389 | L59: 201.824 | M59: A | N59: A
A60: 2019/09/03 07:00:00 | B60: 0.046 | C60: 0.35 | D60: 2.306 | E60: 2.655 | F60: 1.839 | G60: AF | H60: 0 | I60: 6.379 | J60: 89.197 | K60: 0.267 | L60: 150.738 | M60: 4 | N60: A
A61: 2019/09/03 08:00:00 | B61: 0.075 | C61: 2.691 | D61: 4.281 | E61: 6.973 | F61: 2.925 | G61: AF | H61: 0 | I61: 7.966 | J61: 89.171 | K61: 0.962 | L61: 163.705 | M61: 4 | N61: A
A62: 2019/09/03 09:00:00 | B62: 0.191 | C62: 1.215 | D62: 2.299 | E62: 3.515 | F62: 0.805 | G62: AF | H62: 0 | I62: 10.374 | J62: 85.674 | K62: 1.254 | L62: 170.786 | M62: 3 | N62: A
A63: 2019/09/03 10:00:00 | B63: 0.098 | C63: 1.225 | D63: 1.769 | E63: 2.993 | F63: 0.572 | G63: AF | H63: 0 | I63: 13.375 | J63: 76.836 | K63: 1.524 | L63: 187.967 | M63: 2 | N63: A
A64: 2019/09/03 11:00:00 | B64: 0.469 | C64: 0.322 | D64: 1.107 | E64: 1.429 | F64: 0.327 | G64: AF | H64: 0 | I64: 17.403 | J64: 58.997 | K64: 1.714 | L64: 228.616 | M64: 2 | N64: A
A65: 2019/09/03 12:00:00 | B65: 0.388 | C65: 0.418 | D65: 1.153 | E65: 1.572 | F65: 0.23 | G65: AF | H65: 0 | I65: 19.949 | J65: 49.662 | K65: 2.555 | L65: 254.3 | M65: 2 | N65: A
A66: 2019/09/03 13:00:00 | B66: 0.512 | C66: 0.245 | D66: 0.909 | E66: 1.153 | F66: 0.191 | G66: AF | H66: 0 | I66: 21.836 | J66: 45.292 | K66: 2.79 | L66: 268.142 | M66: 2 | N66: A
A67: 2019/09/03 14:00:00 | B67: 0.575 | C67: 0.135 | D67: 0.851 | E67: 0.987 | F67: 0.16 | G67: AF | H67: 0 | I67: 23.063 | J67: 41.706 | K67: 3.022 | L67: 287.898 | M67: 1 | N67: A
A68: 2019/09/03 15:00:00 | B68: 0.641 | C68: 0.038 | D68: 0.737 | E68: 0.776 | F68: 0.093 | G68: AF | H68: 0 | I68: 23.834 | J68: 39.382 | K68: 3.251 | L68: 292.339 | M68: 1 | N68: A
A69: 2019/09/03 16:00:00 | B69: 0.446 | C69: 0.37 | D69: 0.534 | E69: 0.905 | F69: 0.052 | G69: AF | H69: 0 | I69: 23.593 | J69: 40.024 | K69: 3.451 | L69: 310.533 | M69: 1 | N69: A
A70: 2019/09/03 17:00:00 | B70: 0.365 | C70: 0.08 | D70: 0.508 | E70: 0.589 | F70: 0.121 | G70: AF | H70: 0 | I70: 23.633 | J70: 39.285 | K70: 2.806 | L70: 313.842 | M70: 1 | N70: A
A71: 2019/09/03 18:00:00 | B71: 0.363 | C71: 0.936 | D71: 2.044 | E71: 2.982 | F71: 0.073 | G71: AF | H71: 0 | I71: 23.41 | J71: 40.732 | K71: 1.77 | L71: 326.627 | M71: 1 | N71: A
A72: 2019/09/03 19:00:00 | B72: 0.325 | C72: 1.155 | D72: 2.935 | E72: 4.092 | F72: 0.078 | G72: AF | H72: 0 | I72: 22.706 | J72: 42.519 | K72: 1.05 | L72: 327.825 | M72: 1 | N72: A
A73: 2019/09/03 20:00:00 | B73: 0.31 | C73: 1.848 | D73: 3.409 | E73: 5.259 | F73: 0.099 | G73: AF | H73: 0 | I73: 18.696 | J73: 56.584 | K73: 0.485 | L73: 292.759 | M73: 1 | N73: A
A74: 2019/09/03 21:00:00 | B74: Z | C74: Z | D74: Z | E74: Z | F74: Z | G74: AF | H74: 0 | I74: 14.198 | J74: 77.285 | K74: 0.969 | L74: 317.268 | M74: 1 | N74: A
A75: 2019/09/03 22:00:00 | B75: 0.264 | C75: 0.42 | D75: 7.126 | E75: 7.547 | F75: 0.593 | G75: AF | H75: 0 | I75: 12.236 | J75: 79.609 | K75: 0.213 | L75: 222.619 | M75: 2 | N75: A
A76: 2019/09/03 23:00:00 | B76: 0.217 | C76: 0.292 | D76: 5.828 | E76: 6.121 | F76: 0.625 | G76: AF | H76: 0 | I76: 10.518 | J76: 86.065 | K76: 0.372 | L76: 301.294 | M76: 3 | N76: A
A77: 2019/09/04 00:00:00 | B77: 0.167 | C77: 1.87 | D77: 8.51 | E77: 10.382 | F77: 0.574 | G77: AF | H77: 0 | I77: 9.436 | J77: 87.963 | K77: 0.123 | L77: 252.778 | M77: 3 | N77: A
A78: 2019/09/04 01:00:00 | B78: 0.15 | C78: 1.519 | D78: 7.097 | E78: 8.619 | F78: 1.149 | G78: AF | H78: 0 | I78: 8.561 | J78: 88.96 | K78: 0.072 | L78: 228.567 | M78: 3 | N78: A
A79: 2019/09/04 02:00:00 | B79: 0.206 | C79: 1.654 | D79: 4.44 | E79: 6.095 | F79: 1.842 | G79: AF | H79: 0 | I79: 8.347 | J79: 89.429 | K79: 0.345 | L79: 304.204 | M79: 3 | N79: A
A80: 2019/09/04 03:00:00 | B80: 0.108 | C80: 1.081 | D80: 6.158 | E80: 7.241 | F80: 1.348 | G80: AF | H80: 0 | I80: 8.915 | J80: 89.793 | K80: 0.174 | L80: 162.332 | M80: 3 | N80: A
A81: 2019/09/04 04:00:00 | B81: 0.218 | C81: 0.157 | D81: 4.303 | E81: 4.459 | F81: 1.48 | G81: AF | H81: 0 | I81: 9.795 | J81: 85.435 | K81: 0.768 | L81: 143.553 | M81: 3 | N81: A
A82: 2019/09/04 05:00:00 | B82: 0.256 | C82: 0.195 | D82: 2.907 | E82: 3.103 | F82: 2.18 | G82: AF | H82: 0 | I82: 9.71 | J82: 85.514 | K82: 0.297 | L82: 128.628 | M82: A | N82: A
A83: 2019/09/04 06:00:00 | B83: 0.253 | C83: 1.326 | D83: 3.754 | E83: 5.082 | F83: 0.756 | G83: AF | H83: 0 | I83: 9.132 | J83: 86.535 | K83: 0.393 | L83: 307.437 | M83: 3 | N83: A
A84: 2019/09/04 07:00:00 | B84: 0.35 | C84: 0.808 | D84: 3.528 | E84: 4.335 | F84: 1.021 | G84: AF | H84: 0 | I84: 8.23 | J84: 87.854 | K84: 0.578 | L84: 312.345 | M84: 2 | N84: A
A85: 2019/09/04 08:00:00 | B85: 0.154 | C85: 3.337 | D85: 3.804 | E85: 7.143 | F85: 1.043 | G85: AF | H85: 0 | I85: 8.441 | J85: 89.073 | K85: 1.029 | L85: 324.061 | M85: 2 | N85: A
A86: 2019/09/04 09:00:00 | B86: 0.716 | C86: 1.223 | D86: 1.573 | E86: 2.795 | F86: 0.91 | G86: AF | H86: 0 | I86: 13.108 | J86: 77.829 | K86: 1.616 | L86: 93.47 | M86: 2 | N86: A
A87: 2019/09/04 10:00:00 | B87: 1.185 | C87: 0.584 | D87: 0.943 | E87: 1.527 | F87: 0.418 | G87: AF | H87: 0 | I87: 15.628 | J87: 67.082 | K87: 2.578 | L87: 105.012 | M87: 2 | N87: A
A88: 2019/09/04 11:00:00 | B88: 0.791 | C88: 0.381 | D88: 0.566 | E88: 0.946 | F88: 0.269 | G88: AF | H88: 0 | I88: 18.306 | J88: 56.734 | K88: 3.286 | L88: 100.102 | M88: 2 | N88: A
A89: 2019/09/04 12:00:00 | B89: 1.008 | C89: 0.245 | D89: 0.473 | E89: 0.717 | F89: 0.166 | G89: AF | H89: 0 | I89: 20.368 | J89: 49.535 | K89: 4.197 | L89: 116.555 | M89: 2 | N89: A
A90: 2019/09/04 13:00:00 | B90: 0.369 | C90: 0.281 | D90: 0.487 | E90: 0.766 | F90: 0.327 | G90: AF | H90: 0 | I90: 20.623 | J90: 49.046 | K90: 3.246 | L90: 120.595 | M90: 2 | N90: A
A91: 2019/09/04 14:00:00 | B91: 1.338 | C91: 0.18 | D91: 0.519 | E91: 0.699 | F91: 0.291 | G91: AF | H91: 0 | I91: 20.297 | J91: 50.11 | K91: 2.429 | L91: 117.524 | M91: 2 | N91: A
A92: 2019/09/04 15:00:00 | B92: 1.086 | C92: 0.219 | D92: 0.471 | E92: 0.688 | F92: 0.223 | G92: AF | H92: 0 | I92: 21.481 | J92: 47.479 | K92: 3.33 | L92: 89.006 | M92: 2 | N92: A
A93: 2019/09/04 16:00:00 | B93: 0.867 | C93: 0.265 | D93: 0.48 | E93: 0.744 | F93: 0.333 | G93: AF | H93: 0 | I93: 21.281 | J93: 47.983 | K93: 2.943 | L93: 136.749 | M93: 2 | N93: A
A94: 2019/09/04 17:00:00 | B94: 0.671 | C94: 0.236 | D94: 0.447 | E94: 0.681 | F94: 0.211 | G94: AF | H94: 0 | I94: 21.41 | J94: 48.362 | K94: 2.188 | L94: 130.918 | M94: 2 | N94: A
A95: 2019/09/04 18:00:00 | B95: 0.584 | C95: 0.136 | D95: 0.427 | E95: 0.562 | F95: 0.239 | G95: AF | H95: 0 | I95: 21.51 | J95: 47.849 | K95: 1.959 | L95: 116.221 | M95: 2 | N95: A
A96: 2019/09/04 19:00:00 | B96: 0.602 | C96: 0.223 | D96: 0.544 | E96: 0.764 | F96: 0.244 | G96: AF | H96: 0 | I96: 20.795 | J96: 51.273 | K96: 1.291 | L96: 128.915 | M96: 2 | N96: A
A97: 2019/09/04 20:00:00 | B97: Z | C97: Z | D97: Z | E97: Z | F97: Z | G97: AF | H97: 0 | I97: 17.802 | J97: 64.493 | K97: 0.418 | L97: 183.742 | M97: 2 | N97: A
A98: 2019/09/04 21:00:00 | B98: 0.481 | C98: 0.475 | D98: 3.339 | E98: 3.813 | F98: 0.337 | G98: AF | H98: 0 | I98: 14.212 | J98: 79.54 | K98: 0.246 | L98: 204.47 | M98: 2 | N98: A
A99: 2019/09/04 22:00:00 | B99: 0.219 | C99: 0.421 | D99: 4.221 | E99: 4.64 | F99: 0.639 | G99: AF | H99: 0 | I99: 12.329 | J99: 87.26 | K99: 0.167 | L99: 234.499 | M99: 4 | N99: A
A100: 2019/09/04 23:00:00 | B100: 0.109 | C100: 0.398 | D100: 3.676 | E100: 4.071 | F100: 0.947 | G100: AF | H100: 0 | I100: 11.24 | J100: 88.981 | K100: 0.387 | L100: 169.722 | M100: 4 | N100: A
A101: 2019/09/05 00:00:00 | B101: 0.022 | C101: 0.307 | D101: 4.37 | E101: 4.675 | F101: 1.881 | G101: AF | H101: 0 | I101: 10.882 | J101: 89.509 | K101: 0.27 | L101: 166.796 | M101: 5 | N101: A
A102: 2019/09/05 01:00:00 | B102: -0.01 | C102: 1.269 | D102: 5.193 | E102: 6.459 | F102: 1.664 | G102: AF | H102: 0 | I102: 10.278 | J102: 89.849 | K102: 0.386 | L102: 304.495 | M102: 5 | N102: A
A103: 2019/09/05 02:00:00 | B103: 0.146 | C103: 1.896 | D103: 4.847 | E103: 6.74 | F103: 1.773 | G103: AF | H103: 0 | I103: 10.149 | J103: 89.705 | K103: 0.365 | L103: 156.435 | M103: 5 | N103: A
A104: 2019/09/05 03:00:00 | B104: 0.117 | C104: 1.024 | D104: 3.855 | E104: 4.878 | F104: 2.014 | G104: AF | H104: 0 | I104: 8.838 | J104: 89.519 | K104: 0.352 | L104: 176.159 | M104: 5 | N104: A
A105: 2019/09/05 04:00:00 | B105: 0.03 | C105: 1.34 | D105: 4.597 | E105: 5.935 | F105: 1.774 | G105: AF | H105: 0 | I105: 10.089 | J105: 90.272 | K105: 1.038 | L105: 283.786 | M105: A | N105: A
A106: 2019/09/05 05:00:00 | B106: 0.112 | C106: 0.108 | D106: 1.736 | E106: 1.842 | F106: 0.652 | G106: AF | H106: 0 | I106: 13.056 | J106: 81.777 | K106: 2.569 | L106: 289.302 | M106: 4 | N106: A
A107: 2019/09/05 06:00:00 | B107: 0.052 | C107: 0.065 | D107: 1.041 | E107: 1.105 | F107: 0.427 | G107: AF | H107: 0 | I107: 13.354 | J107: 78.789 | K107: 2.108 | L107: 289.674 | M107: 3 | N107: A
A108: 2019/09/05 07:00:00 | B108: 0.078 | C108: 0.097 | D108: 0.944 | E108: 1.04 | F108: 0.378 | G108: AF | H108: 0 | I108: 12.946 | J108: 79.63 | K108: 1.892 | L108: 285.954 | M108: 2 | N108: A
A109: 2019/09/05 08:00:00 | B109: 0.129 | C109: 0.234 | D109: 0.815 | E109: 1.048 | F109: 0.305 | G109: AF | H109: 0 | I109: 12.538 | J109: 80.011 | K109: 2.11 | L109: 284.34 | M109: 2 | N109: A
A110: 2019/09/05 09:00:00 | B110: 0.081 | C110: 0.379 | D110: 0.756 | E110: 1.133 | F110: 0.36 | G110: AF | H110: 0 | I110: 13.892 | J110: 74.652 | K110: 2.958 | L110: 301.19 | M110: 1 | N110: A
A111: 2019/09/05 10:00:00 | B111: 0.172 | C111: 0.348 | D111: 0.492 | E111: 0.838 | F111: 0.283 | G111: AF | H111: 0 | I111: 15.539 | J111: 66.992 | K111: 3.559 | L111: 310.144 | M111: 1 | N111: A
A112: 2019/09/05 11:00:00 | B112: 0.149 | C112: 0.245 | D112: 0.365 | E112: 0.608 | F112: 0.204 | G112: AF | H112: 0 | I112: 16.621 | J112: 61.729 | K112: 4.158 | L112: 312.378 | M112: 1 | N112: A
A113: 2019/09/05 12:00:00 | B113: 0.128 | C113: 0.207 | D113: 0.422 | E113: 0.627 | F113: 0.112 | G113: AF | H113: 0 | I113: 18.08 | J113: 55.237 | K113: 4.037 | L113: 300.368 | M113: 1 | N113: A
A114: 2019/09/05 13:00:00 | B114: 0.236 | C114: 0.085 | D114: 0.286 | E114: 0.37 | F114: 0.042 | G114: AF | H114: 0 | I114: 19.335 | J114: 49.114 | K114: 4.352 | L114: 312.096 | M114: 1 | N114: A
A115: 2019/09/05 14:00:00 | B115: 0.24 | C115: 0.095 | D115: 0.237 | E115: 0.329 | F115: 0.092 | G115: AF | H115: 0 | I115: 20.236 | J115: 43.731 | K115: 4.726 | L115: 308.669 | M115: 1 | N115: A
A116: 2019/09/05 15:00:00 | B116: 0.163 | C116: 0.113 | D116: 0.311 | E116: 0.421 | F116: 0.148 | G116: AF | H116: 0 | I116: 21.107 | J116: 40.066 | K116: 4.215 | L116: 314.772 | M116: 1 | N116: A
A117: 2019/09/05 16:00:00 | B117: 0.109 | C117: 0.195 | D117: 0.251 | E117: 0.445 | F117: 0.161 | G117: AF | H117: 0 | I117: 21.302 | J117: 37.943 | K117: 4.358 | L117: 314.866 | M117: 1 | N117: A
A118: 2019/09/05 17:00:00 | B118: 0.208 | C118: 0.053 | D118: 0.287 | E118: 0.338 | F118: 0.166 | G118: AF | H118: 0 | I118: 21.356 | J118: 37.62 | K118: 3.705 | L118: 307.508 | M118: 1 | N118: A
A119: 2019/09/05 18:00:00 | B119: 0.193 | C119: 0.137 | D119: 0.258 | E119: 0.393 | F119: 0.016 | G119: AF | H119: 0 | I119: 21.12 | J119: 37.987 | K119: 3.224 | L119: 310.634 | M119: 1 | N119: A
A120: 2019/09/05 19:00:00 | B120: Z | C120: Z | D120: Z | E120: Z | F120: Z | G120: AF | H120: 0 | I120: 20.412 | J120: 38.683 | K120: 2.458 | L120: 310.28 | M120: 1 | N120: A
A121: 2019/09/05 20:00:00 | B121: 0.159 | C121: 0.083 | D121: 1.611 | E121: 1.691 | F121: 0.216 | G121: AF | H121: 0 | I121: 17.931 | J121: 44.808 | K121: 1.274 | L121: 275.925 | M121: 1 | N121: A
A122: 2019/09/05 21:00:00 | B122: 0.25 | C122: 0.075 | D122: 2.613 | E122: 2.686 | F122: 0.204 | G122: AF | H122: 0 | I122: 15.2 | J122: 53.918 | K122: 1.348 | L122: 269.555 | M122: 2 | N122: A
A123: 2019/09/05 22:00:00 | B123: 0.259 | C123: 0.215 | D123: 4.241 | E123: 4.454 | F123: 0.212 | G123: AF | H123: 0 | I123: 13.173 | J123: 61.5 | K123: 0.805 | L123: 272.483 | M123: 3 | N123: A
A124: 2019/09/05 23:00:00 | B124: 0.153 | C124: 0.912 | D124: 8.879 | E124: 9.789 | F124: 0.307 | G124: AF | H124: 0 | I124: 10.064 | J124: 75.274 | K124: 0.297 | L124: 59.726 | M124: 3 | N124: A
A125: 2019/09/06 00:00:00 | B125: 0.099 | C125: 0.93 | D125: 8.029 | E125: 8.956 | F125: 0.458 | G125: AF | H125: 0 | I125: 7.428 | J125: 84.992 | K125: 0.131 | L125: 309.599 | M125: 3 | N125: A
A126: 2019/09/06 01:00:00 | B126: 0.221 | C126: 1.744 | D126: 5.567 | E126: 7.309 | F126: 0.615 | G126: AF | H126: 0 | I126: 7.203 | J126: 85.998 | K126: 0.506 | L126: 336.411 | M126: 4 | N126: A
A127: 2019/09/06 02:00:00 | B127: 0.138 | C127: 3.365 | D127: 6.423 | E127: 9.788 | F127: 0.6 | G127: AF | H127: 0 | I127: 7.029 | J127: 86.724 | K127: 0.636 | L127: 334.297 | M127: 5 | N127: A
A128: 2019/09/06 03:00:00 | B128: 0.102 | C128: 3.533 | D128: 6.491 | E128: 10.023 | F128: 0.916 | G128: AF | H128: 0 | I128: 7.397 | J128: 86.808 | K128: 0.962 | L128: 340.313 | M128: A | N128: A
A129: 2019/09/06 04:00:00 | B129: 0.116 | C129: 0.713 | D129: 5.843 | E129: 6.555 | F129: 1.308 | G129: AF | H129: 0 | I129: 7.945 | J129: 84.104 | K129: 1.52 | L129: 342.199 | M129: 5 | N129: A
A130: 2019/09/06 05:00:00 | B130: 0.111 | C130: 2.538 | D130: 5.803 | E130: 8.341 | F130: 1.609 | G130: AF | H130: 0 | I130: 7.038 | J130: 84.619 | K130: 1.701 | L130: 343.126 | M130: 5 | N130: A
A131: 2019/09/06 06:00:00 | B131: 0.161 | C131: 0.619 | D131: 4.68 | E131: 5.298 | F131: 1.515 | G131: AF | H131: 0 | I131: 5.683 | J131: 86.513 | K131: 0.836 | L131: 340.031 | M131: 4 | N131: A
A132: 2019/09/06 07:00:00 | B132: 0.104 | C132: 1.091 | D132: 3.698 | E132: 4.787 | F132: 1.162 | G132: AF | H132: 0 | I132: 4.753 | J132: 88.024 | K132: 0.309 | L132: 300.218 | M132: 4 | N132: A
A133: 2019/09/06 08:00:00 | B133: 0.271 | C133: 10.018 | D133: 5.248 | E133: 15.264 | F133: 1.48 | G133: AF | H133: 0 | I133: 6.246 | J133: 88.089 | K133: 0.758 | L133: 324.062 | M133: 3 | N133: A
A134: 2019/09/06 09:00:00 | B134: 0.225 | C134: 4.255 | D134: 3.507 | E134: 7.761 | F134: 1.199 | G134: AF | H134: 0 | I134: 9.576 | J134: 80.923 | K134: 0.723 | L134: 2.611 | M134: 2 | N134: A
A135: 2019/09/06 10:00:00 | B135: 0.291 | C135: 0.66 | D135: 1.075 | E135: 1.735 | F135: 0.791 | G135: AF | H135: 0 | I135: 12.47 | J135: 73.062 | K135: 1.419 | L135: 100.659 | M135: 2 | N135: A
A136: 2019/09/06 11:00:00 | B136: 0.235 | C136: 0.454 | D136: 0.626 | E136: 1.081 | F136: 0.476 | G136: AF | H136: 0 | I136: 14.959 | J136: 64.323 | K136: 1.564 | L136: 118.317 | M136: 1 | N136: A
A137: 2019/09/06 12:00:00 | B137: 0.249 | C137: 0.457 | D137: 0.72 | E137: 1.176 | F137: 0.505 | G137: AF | H137: 0 | I137: 17.213 | J137: 56.159 | K137: 1.621 | L137: 148.448 | M137: 1 | N137: A
A138: 2019/09/06 13:00:00 | B138: 0.501 | C138: 0.2 | D138: 0.44 | E138: 0.64 | F138: 0.307 | G138: AF | H138: 0 | I138: 18.966 | J138: 46.621 | K138: 1.134 | L138: 129.039 | M138: 1 | N138: A
A139: 2019/09/06 14:00:00 | B139: 0.358 | C139: 0.136 | D139: 0.323 | E139: 0.457 | F139: 0.05 | G139: AF | H139: 0 | I139: 20.397 | J139: 38.746 | K139: 0.917 | L139: 134.015 | M139: 2 | N139: A
A140: 2019/09/06 15:00:00 | B140: 0.144 | C140: 0.112 | D140: 0.277 | E140: 0.39 | F140: 0.06 | G140: AF | H140: 0 | I140: 20.467 | J140: 35.813 | K140: 1.224 | L140: 52.751 | M140: 2 | N140: A
A141: 2019/09/06 16:00:00 | B141: 0.167 | C141: 0.176 | D141: 0.24 | E141: 0.415 | F141: 0.139 | G141: AF | H141: 0 | I141: 21.027 | J141: 35.712 | K141: 1.198 | L141: 66.346 | M141: 2 | N141: A
A142: 2019/09/06 17:00:00 | B142: 0.113 | C142: 0.125 | D142: 0.249 | E142: 0.374 | F142: 0.045 | G142: AF | H142: 0 | I142: 20.707 | J142: 36.22 | K142: 1.355 | L142: 81.488 | M142: 2 | N142: A
A143: 2019/09/06 18:00:00 | B143: Z | C143: Z | D143: Z | E143: Z | F143: Z | G143: AF | H143: 0 | I143: 19.353 | J143: 39.155 | K143: 1.642 | L143: 54.797 | M143: 2 | N143: A
A144: 2019/09/06 19:00:00 | B144: 0.113 | C144: 0.187 | D144: 0.593 | E144: 0.781 | F144: 0.062 | G144: AF | H144: 0 | I144: 18.453 | J144: 45.074 | K144: 1.629 | L144: 57.924 | M144: 2 | N144: A
A145: 2019/09/06 20:00:00 | B145: 0.077 | C145: 0.12 | D145: 0.669 | E145: 0.791 | F145: 0.089 | G145: AF | H145: 0 | I145: 16.701 | J145: 51.627 | K145: 1.313 | L145: 63.62 | M145: 2 | N145: A
A146: 2019/09/06 21:00:00 | B146: 0.076 | C146: 0.236 | D146: 1.902 | E146: 2.139 | F146: 0.111 | G146: AF | H146: 0 | I146: 15.305 | J146: 56.55 | K146: 1.338 | L146: 96.464 | M146: 2 | N146: A
A147: 2019/09/06 22:00:00 | B147: 0.067 | C147: 0.19 | D147: 1.45 | E147: 1.642 | F147: 0.165 | G147: AF | H147: 0 | I147: 14.605 | J147: 58.841 | K147: 1.414 | L147: 99.432 | M147: 3 | N147: A
A148: 2019/09/06 23:00:00 | B148: 0.103 | C148: 1.026 | D148: 1.893 | E148: 2.92 | F148: 0.287 | G148: AF | H148: 0 | I148: 13.659 | J148: 61.935 | K148: 0.816 | L148: 116.167 | M148: 4 | N148: A
A149: 2019/09/07 00:00:00 | B149: 0.296 | C149: 1.01 | D149: 2.533 | E149: 3.544 | F149: 0.32 | G149: AF | H149: 0 | I149: 13.197 | J149: 62.159 | K149: 0.897 | L149: 120.385 | M149: 6 | N149: A
A150: 2019/09/07 01:00:00 | B150: 0.545 | C150: 0.088 | D150: 2.132 | E150: 2.221 | F150: 0.506 | G150: AF | H150: 0 | I150: 12.659 | J150: 66.256 | K150: 0.601 | L150: 114.166 | M150: 7 | N150: A
A151: 2019/09/07 02:00:00 | B151: 0.469 | C151: -0.025 | D151: 2.311 | E151: 2.288 | F151: 0.775 | G151: AF | H151: 0 | I151: 12.143 | J151: 70.784 | K151: 0.583 | L151: 157.716 | M151: A | N151: A
A152: 2019/09/07 03:00:00 | B152: 0.349 | C152: 0.055 | D152: 1.481 | E152: 1.536 | F152: 0.864 | G152: AF | H152: 0 | I152: 12.101 | J152: 68.715 | K152: 1.307 | L152: 116.01 | M152: 7 | N152: A
A153: 2019/09/07 04:00:00 | B153: 0.159 | C153: 0.069 | D153: 1.633 | E153: 1.705 | F153: 0.73 | G153: AF | H153: 0 | I153: 11.665 | J153: 72.277 | K153: 0.897 | L153: 130.064 | M153: 8 | N153: A
A154: 2019/09/07 05:00:00 | B154: 0.112 | C154: 0.089 | D154: 1.37 | E154: 1.46 | F154: 1.092 | G154: AF | H154: 0.02 | I154: 11.338 | J154: 74.163 | K154: 1.097 | L154: 121.492 | M154: 8 | N154: A
A155: 2019/09/07 06:00:00 | B155: 0.18 | C155: 0.079 | D155: 1.467 | E155: 1.549 | F155: 0.752 | G155: AF | H155: 0 | I155: 10.891 | J155: 77.53 | K155: 1.005 | L155: 124.721 | M155: 8 | N155: A
A156: 2019/09/07 07:00:00 | B156: 0.273 | C156: 0.374 | D156: 2.337 | E156: 2.713 | F156: 1.088 | G156: AF | H156: 0 | I156: 10.721 | J156: 79.614 | K156: 1.347 | L156: 124.091 | M156: 7 | N156: A
A157: 2019/09/07 08:00:00 | B157: 0.22 | C157: 0.217 | D157: 1.044 | E157: 1.264 | F157: 1.139 | G157: AF | H157: 0 | I157: 10.814 | J157: 79.868 | K157: 2.052 | L157: 130.84 | M157: 4 | N157: A
A158: 2019/09/07 09:00:00 | B158: 1.276 | C158: 0.287 | D158: 1.555 | E158: 1.844 | F158: 1.257 | G158: AF | H158: 0 | I158: 10.98 | J158: 79.833 | K158: 1.706 | L158: 138.215 | M158: 3 | N158: A
A159: 2019/09/07 10:00:00 | B159: 1.163 | C159: 0.443 | D159: 0.901 | E159: 1.347 | F159: 0.803 | G159: AF | H159: 0 | I159: 12.134 | J159: 75.813 | K159: 2.566 | L159: 140.167 | M159: 2 | N159: A
A160: 2019/09/07 11:00:00 | B160: 0.329 | C160: 0.444 | D160: 0.791 | E160: 1.239 | F160: 0.514 | G160: AF | H160: 0 | I160: 13.719 | J160: 68.955 | K160: 2.456 | L160: 137.521 | M160: 1 | N160: A
A161: 2019/09/07 12:00:00 | B161: 0.347 | C161: 0.319 | D161: 0.665 | E161: 0.988 | F161: 0.437 | G161: AF | H161: 0 | I161: 15.348 | J161: 64.01 | K161: 2.357 | L161: 145.978 | M161: 1 | N161: A
A162: 2019/09/07 13:00:00 | B162: 0.364 | C162: 0.166 | D162: 0.446 | E162: 0.615 | F162: 0.303 | G162: AF | H162: 0 | I162: 17.527 | J162: 56.755 | K162: 2.524 | L162: 143.773 | M162: 1 | N162: A
A163: 2019/09/07 14:00:00 | B163: 0.274 | C163: 0.106 | D163: 0.386 | E163: 0.495 | F163: 0.329 | G163: AF | H163: 0 | I163: 19.766 | J163: 51.801 | K163: 2.713 | L163: 125.421 | M163: 1 | N163: A
A164: 2019/09/07 15:00:00 | B164: 0.263 | C164: 0.095 | D164: 0.382 | E164: 0.481 | F164: 0.171 | G164: AF | H164: 0 | I164: 21.262 | J164: 39.917 | K164: 3.138 | L164: 169.584 | M164: 1 | N164: A
A165: 2019/09/07 16:00:00 | B165: 0.262 | C165: -0.121 | D165: 0.39 | E165: 0.273 | F165: 0.255 | G165: AF | H165: 0 | I165: 21.817 | J165: 39.867 | K165: 3.869 | L165: 175.171 | M165: 1 | N165: A
A166: 2019/09/07 17:00:00 | B166: Z | C166: Z | D166: Z | E166: Z | F166: Z | G166: AF | H166: 0 | I166: 22.178 | J166: 36.559 | K166: 3.686 | L166: 185.464 | M166: 2 | N166: A
A167: 2019/09/07 18:00:00 | B167: 0.387 | C167: -0.014 | D167: 1.155 | E167: 1.145 | F167: 0.433 | G167: AF | H167: 0 | I167: 21.917 | J167: 38.991 | K167: 3.135 | L167: 185.682 | M167: 2 | N167: A
A168: 2019/09/07 19:00:00 | B168: 0.317 | C168: 0.002 | D168: 0.971 | E168: 0.976 | F168: 0.242 | G168: AF | H168: 0 | I168: 21.635 | J168: 42.444 | K168: 1.408 | L168: 177.167 | M168: 1 | N168: A
A169: 2019/09/07 20:00:00 | B169: 0.224 | C169: 0.048 | D169: 2.07 | E169: 2.122 | F169: 0.419 | G169: AF | H169: 0 | I169: 18.725 | J169: 56.609 | K169: 0.433 | L169: 177.968 | M169: 2 | N169: A
A170: 2019/09/07 21:00:00 | B170: 0.254 | C170: -0.042 | D170: 3.047 | E170: 3.01 | F170: 0.655 | G170: AF | H170: 0 | I170: 15.353 | J170: 69.404 | K170: 0.469 | L170: 169.753 | M170: 3 | N170: A
A171: 2019/09/07 22:00:00 | B171: 0.277 | C171: -0.008 | D171: 4.053 | E171: 4.049 | F171: 1.011 | G171: AF | H171: 0 | I171: 15.223 | J171: 68.778 | K171: 0.906 | L171: 159.759 | M171: 4 | N171: A
A172: 2019/09/07 23:00:00 | B172: 0.288 | C172: -0.011 | D172: 2.079 | E172: 2.071 | F172: 0.89 | G172: AF | H172: 0.08 | I172: 15.763 | J172: 66.315 | K172: 0.606 | L172: 162.007 | M172: 4 | N172: A
A173: 2019/09/08 00:00:00 | B173: 0.208 | C173: 0.026 | D173: 2.41 | E173: 2.44 | F173: 0.879 | G173: AF | H173: 5.55 | I173: 14.725 | J173: 76.077 | K173: 1.42 | L173: 179.214 | M173: 4 | N173: A
A174: 2019/09/08 01:00:00 | B174: 0.19 | C174: 0.011 | D174: 1.238 | E174: 1.253 | F174: 0.776 | G174: AF | H174: 2.18 | I174: 15.411 | J174: 77.686 | K174: 1.819 | L174: 195.543 | M174: A | N174: A
A175: 2019/09/08 02:00:00 | B175: 0.177 | C175: 0.022 | D175: 1.295 | E175: 1.32 | F175: 0.445 | G175: AF | H175: 0 | I175: 15.252 | J175: 79.565 | K175: 2.051 | L175: 178.172 | M175: 5 | N175: A
A176: 2019/09/08 03:00:00 | B176: 0.151 | C176: 1.373 | D176: 2.622 | E176: 3.998 | F176: 0.944 | G176: AF | H176: 0 | I176: 14.335 | J176: 82.775 | K176: 0.85 | L176: 148.447 | M176: 5 | N176: A
A177: 2019/09/08 04:00:00 | B177: 0.035 | C177: -0.005 | D177: 1.952 | E177: 1.95 | F177: 0.83 | G177: AF | H177: 0.64 | I177: 13.789 | J177: 78.427 | K177: 0.764 | L177: 180.912 | M177: 4 | N177: A
A178: 2019/09/08 05:00:00 | B178: 0.083 | C178: 0.821 | D178: 3.018 | E178: 3.842 | F178: 0.725 | G178: AF | H178: 0 | I178: 12.795 | J178: 84.128 | K178: 0.311 | L178: 269.328 | M178: 4 | N178: A
A179: 2019/09/08 06:00:00 | B179: 0.049 | C179: 1.671 | D179: 6.394 | E179: 8.068 | F179: 1.031 | G179: AF | H179: 0 | I179: 12.529 | J179: 87.136 | K179: 0.088 | L179: 353.531 | M179: 4 | N179: A
A180: 2019/09/08 07:00:00 | B180: 0.038 | C180: 3.953 | D180: 4.219 | E180: 8.174 | F180: 0.771 | G180: AF | H180: 0 | I180: 12.583 | J180: 88.02 | K180: 0.758 | L180: 18.628 | M180: 4 | N180: A
A181: 2019/09/08 08:00:00 | B181: 0.08 | C181: 0.715 | D181: 1.71 | E181: 2.429 | F181: 0.898 | G181: AF | H181: 0 | I181: 12.65 | J181: 88.243 | K181: 1.195 | L181: 347.17 | M181: 4 | N181: A
A182: 2019/09/08 09:00:00 | B182: 0.082 | C182: 0.678 | D182: 1.501 | E182: 2.181 | F182: 0.747 | G182: AF | H182: 0 | I182: 12.926 | J182: 87.725 | K182: 1.523 | L182: 39.613 | M182: 3 | N182: A
A183: 2019/09/08 10:00:00 | B183: 0.199 | C183: 0.541 | D183: 1.703 | E183: 2.245 | F183: 0.798 | G183: AF | H183: 0 | I183: 13.156 | J183: 85.572 | K183: 1.73 | L183: 53.057 | M183: 3 | N183: A
A184: 2019/09/08 11:00:00 | B184: 0.192 | C184: 0.497 | D184: 1.337 | E184: 1.835 | F184: 0.754 | G184: AF | H184: 0.14 | I184: 13.322 | J184: 85.09 | K184: 1.692 | L184: 36.768 | M184: 3 | N184: A
A185: 2019/09/08 12:00:00 | B185: 0.102 | C185: 0.334 | D185: 1.078 | E185: 1.415 | F185: 0.81 | G185: AF | H185: 0.05 | I185: 13.097 | J185: 83.78 | K185: 1.972 | L185: 56.481 | M185: 2 | N185: A
A186: 2019/09/08 13:00:00 | B186: 0.116 | C186: 0.574 | D186: 0.801 | E186: 1.376 | F186: 0.576 | G186: AF | H186: 0.02 | I186: 12.972 | J186: 86.369 | K186: 2.706 | L186: 40.259 | M186: 2 | N186: A
A187: 2019/09/08 14:00:00 | B187: -0.01 | C187: 0.461 | D187: 0.241 | E187: 0.705 | F187: 0.475 | G187: AF | H187: 0 | I187: 13.351 | J187: 84.378 | K187: 3.15 | L187: 51.693 | M187: 2 | N187: A
A188: 2019/09/08 15:00:00 | B188: 0.118 | C188: 0.395 | D188: 0.05 | E188: 0.446 | F188: 0.451 | G188: AF | H188: 0 | I188: 14.107 | J188: 80.504 | K188: 3.155 | L188: 57.293 | M188: 2 | N188: A
A189: 2019/09/08 16:00:00 | B189: Z | C189: Z | D189: Z | E189: Z | F189: Z | G189: AF | H189: 0 | I189: 13.883 | J189: 79.557 | K189: 3.57 | L189: 56.229 | M189: 2 | N189: A
A190: 2019/09/08 17:00:00 | B190: 0.009 | C190: 0.395 | D190: 0.398 | E190: 0.795 | F190: 0.485 | G190: AF | H190: 0 | I190: 13.609 | J190: 78.339 | K190: 3.56 | L190: 49.842 | M190: 2 | N190: A
A191: 2019/09/08 18:00:00 | B191: 0.06 | C191: 0.303 | D191: 0.186 | E191: 0.49 | F191: 0.256 | G191: AF | H191: 0 | I191: 13.199 | J191: 78.651 | K191: 3.316 | L191: 47.662 | M191: 2 | N191: A
A192: 2019/09/08 19:00:00 | B192: 0.062 | C192: 0.239 | D192: 0.167 | E192: 0.408 | F192: 0.283 | G192: AF | H192: 0 | I192: 13.005 | J192: 78.799 | K192: 3.58 | L192: 58.801 | M192: 3 | N192: A
A193: 2019/09/08 20:00:00 | B193: 0.15 | C193: 0.098 | D193: 0.215 | E193: 0.314 | F193: 0.2 | G193: AF | H193: 0 | I193: 12.311 | J193: 79.755 | K193: 3.636 | L193: 59.913 | M193: 4 | N193: A
A194: 2019/09/08 21:00:00 | B194: 0.106 | C194: 0.142 | D194: 0.099 | E194: 0.243 | F194: 0.146 | G194: AF | H194: 0 | I194: 11.806 | J194: 80.611 | K194: 3.688 | L194: 71.202 | M194: 4 | N194: A
A195: 2019/09/08 22:00:00 | B195: 0.051 | C195: 0.171 | D195: 0.188 | E195: 0.36 | F195: 0.274 | G195: AF | H195: 0 | I195: 11.577 | J195: 81.633 | K195: 3.086 | L195: 79.602 | M195: 4 | N195: A
A196: 2019/09/08 23:00:00 | B196: -0.072 | C196: 0.2 | D196: 0.266 | E196: 0.468 | F196: 0.221 | G196: AF | H196: 0 | I196: 11.4 | J196: 81.931 | K196: 3.281 | L196: 83.95 | M196: 4 | N196: A
A197: 2019/09/09 00:00:00 | B197: -0.055 | C197: 0.281 | D197: 0.311 | E197: 0.592 | F197: 0.237 | G197: AF | H197: 0 | I197: 11.304 | J197: 82.436 | K197: 3.045 | L197: 86.331 | M197: A | N197: A
A198: 2019/09/09 01:00:00 | B198: 0.16 | C198: 0.22 | D198: 0.436 | E198: 0.656 | F198: 0.427 | G198: AF | H198: 0 | I198: 11.101 | J198: 81.425 | K198: 3.031 | L198: 83.729 | M198: 4 | N198: A
A199: 2019/09/09 02:00:00 | B199: -0.064 | C199: 0.236 | D199: 0.456 | E199: 0.693 | F199: 0.427 | G199: AF | H199: 0 | I199: 10.939 | J199: 82.228 | K199: 2.229 | L199: 77.834 | M199: 3 | N199: A
A200: 2019/09/09 03:00:00 | B200: 0.058 | C200: 0.204 | D200: 0.309 | E200: 0.513 | F200: 0.229 | G200: AF | H200: 0 | I200: 10.727 | J200: 83.154 | K200: 2.907 | L200: 80.238 | M200: 4 | N200: A
A201: 2019/09/09 04:00:00 | B201: 0.034 | C201: 0.189 | D201: 0.381 | E201: 0.57 | F201: 0.348 | G201: AF | H201: 0 | I201: 10.536 | J201: 83.341 | K201: 3.035 | L201: 81.424 | M201: 5 | N201: A
... 531 more rows

Sheet Meadow Lake
A1: =Kerrobert!A1 -> Group: Global WYAMZ - Monthly Monthly: 01/2019 Type: AVG 1 Hr.
A3: Date & Time | B3: Meadow Lake | C3: Meadow Lake | D3: Meadow Lake | E3: Meadow Lake | F3: Meadow Lake | G3: Meadow Lake | H3: Meadow Lake | I3: Meadow Lake | J3: Meadow Lake | K3: Meadow Lake
B4: NO | C4: NO2 | D4: NOX | E4: O3 | F4: PM25 | G4: PRECIP | H4: TEMPERAT | I4: WS | J4: WD | K4: RH
B5: ppb | C5: ppb | D5: ppb | E5: ppb | F5: ug/m3(L) | G5: mm | H5: C° | I5: m/s | J5: Deg | K5: %RH
A6: 2019/09/01 01:00:00 | B6: -0.046 | C6: 0.724 | D6: 0.677 | E6: 11.931 | F6: 8.073 | G6: 0 | H6: 7.28 | I6: 0.479 | J6: 181.813 | K6: 88.803
A7: 2019/09/01 02:00:00 | B7: -0.024 | C7: 0.44 | D7: 0.413 | E7: 14.172 | F7: 10.275 | G7: 0 | H7: 7.091 | I7: 0.422 | J7: 187.488 | K7: 89.499
A8: 2019/09/01 03:00:00 | B8: -0.057 | C8: 0.468 | D8: 0.409 | E8: 9.351 | F8: 6.142 | G8: 0 | H8: 5.797 | I8: 0.493 | J8: 179.471 | K8: 89.37
A9: 2019/09/01 04:00:00 | B9: -0.012 | C9: 0.419 | D9: 0.405 | E9: 8.988 | F9: 7.344 | G9: 0 | H9: 5.403 | I9: 0.963 | J9: 192.825 | K9: 89.476
A10: 2019/09/01 05:00:00 | B10: 0.08 | C10: 0.478 | D10: 0.558 | E10: 5.38 | F10: 5.591 | G10: 0 | H10: 4.305 | I10: 0.695 | J10: 188.401 | K10: 89.303
A11: 2019/09/01 06:00:00 | B11: 0.052 | C11: 0.459 | D11: 0.511 | E11: 9.344 | F11: 4.971 | G11: 0 | H11: 5.928 | I11: 0.626 | J11: 195.566 | K11: 90.119
A12: 2019/09/01 07:00:00 | B12: 0.034 | C12: 0.307 | D12: 0.341 | E12: 11.755 | F12: 3.664 | G12: 0 | H12: 7.245 | I12: 1.111 | J12: 334.471 | K12: 90.227
A13: 2019/09/01 08:00:00 | B13: -0.046 | C13: 0.151 | D13: 0.104 | E13: 14.911 | F13: 2.633 | G13: 0 | H13: 7.251 | I13: 1.156 | J13: 41.991 | K13: 90.017
A14: 2019/09/01 09:00:00 | B14: -0.012 | C14: 0.514 | D14: 0.502 | E14: 14.371 | F14: 6.227 | G14: 0 | H14: 7.743 | I14: 0.244 | J14: 33.028 | K14: 90.085
A15: 2019/09/01 10:00:00 | B15: 0.04 | C15: 0.54 | D15: 0.58 | E15: 15.453 | F15: 4.005 | G15: 0 | H15: 8.368 | I15: 0.788 | J15: 70.948 | K15: 89.903
A16: 2019/09/01 11:00:00 | B16: 0.023 | C16: 0.718 | D16: 0.741 | E16: 17.053 | F16: 3.835 | G16: 0 | H16: 8.952 | I16: 1.537 | J16: 51.088 | K16: 89.506
A17: 2019/09/01 12:00:00 | B17: 0.037 | C17: 0.386 | D17: 0.422 | E17: 20.997 | F17: 2.13 | G17: 0 | H17: 10.332 | I17: 1.507 | J17: 82.827 | K17: 83.345
A18: 2019/09/01 13:00:00 | B18: -0.022 | C18: 0.177 | D18: 0.154 | E18: 23.852 | F18: 1.134 | G18: 0 | H18: 12.218 | I18: 1.777 | J18: 101.185 | K18: 72.23
A19: 2019/09/01 14:00:00 | B19: -0.114 | C19: 0.251 | D19: 0.139 | E19: 26.887 | F19: 1 | G19: 0 | H19: 14.443 | I19: 1.231 | J19: 74.549 | K19: 60.546
A20: 2019/09/01 15:00:00 | B20: -0.108 | C20: 0.05 | D20: -0.058 | E20: 32.925 | F20: 0.925 | G20: 0 | H20: 16.139 | I20: 1.225 | J20: 101.289 | K20: 47.799
A21: 2019/09/01 16:00:00 | B21: -0.105 | C21: 0.204 | D21: 0.099 | E21: 34.671 | F21: 0.924 | G21: 0 | H21: 17.131 | I21: 1.07 | J21: 96.46 | K21: 43.383
A22: 2019/09/01 17:00:00 | B22: -0.045 | C22: 0.193 | D22: 0.149 | E22: 34.439 | F22: 1.066 | G22: 0 | H22: 17.746 | I22: 1.175 | J22: 100.607 | K22: 42.661
A23: 2019/09/01 18:00:00 | B23: -0.001 | C23: 0.107 | D23: 0.108 | E23: 34.098 | F23: 0.952 | G23: 0 | H23: 17.568 | I23: 1.697 | J23: 104.204 | K23: 43.392
A24: 2019/09/01 19:00:00 | B24: -0.016 | C24: 0.148 | D24: 0.132 | E24: 29.133 | F24: 3.113 | G24: 0 | H24: 16.809 | I24: 1.514 | J24: 109.51 | K24: 50.834
A25: 2019/09/01 20:00:00 | B25: -0.127 | C25: 0.273 | D25: 0.147 | E25: 24.678 | F25: 9.281 | G25: 0 | H25: 14.439 | I25: 1.353 | J25: 114.298 | K25: 61.268
A26: 2019/09/01 21:00:00 | B26: -0.066 | C26: 0.311 | D26: 0.245 | E26: 23.276 | F26: 7.052 | G26: 0 | H26: 12.639 | I26: 1.66 | J26: 123.105 | K26: 67.047
A27: 2019/09/01 22:00:00 | B27: -0.024 | C27: 0.183 | D27: 0.16 | E27: 24.147 | F27: 4.069 | G27: 0 | H27: 12.512 | I27: 1.863 | J27: 121.813 | K27: 66.306
A28: 2019/09/01 23:00:00 | B28: Z | C28: Z | D28: Z | E28: Z | F28: 3.624 | G28: 0 | H28: 12.889 | I28: 2.143 | J28: 127.087 | K28: 63.652
A29: 2019/09/02 00:00:00 | B29: -0.072 | C29: 0.26 | D29: 0.188 | E29: 27.369 | F29: 4.036 | G29: 0 | H29: 12.979 | I29: 2.284 | J29: 126.679 | K29: 61.288
A30: 2019/09/02 01:00:00 | B30: 0 | C30: 0.124 | D30: 0.124 | E30: 27.507 | F30: 3.29 | G30: 0.03 | H30: 12.849 | I30: 2.332 | J30: 120.802 | K30: 61.674
A31: 2019/09/02 02:00:00 | B31: -0.084 | C31: 0.229 | D31: 0.145 | E31: 26.717 | F31: 3.694 | G31: 0 | H31: 12.416 | I31: 2.165 | J31: 123.505 | K31: 65.746
A32: 2019/09/02 03:00:00 | B32: -0.075 | C32: 0.319 | D32: 0.244 | E32: 25.112 | F32: 4.333 | G32: 0.05 | H32: 11.995 | I32: 2.183 | J32: 128.198 | K32: 70.655
A33: 2019/09/02 04:00:00 | B33: -0.153 | C33: 0.272 | D33: 0.119 | E33: 22.6 | F33: 4.704 | G33: 0 | H33: 11.129 | I33: 2.657 | J33: 123.281 | K33: 78.153
A34: 2019/09/02 05:00:00 | B34: -0.093 | C34: 0.335 | D34: 0.241 | E34: 22.303 | F34: 4.149 | G34: 0.02 | H34: 11.263 | I34: 3.305 | J34: 117.75 | K34: 76.371
A35: 2019/09/02 06:00:00 | B35: -0.168 | C35: 0.243 | D35: 0.074 | E35: 21.865 | F35: 4.115 | G35: 0.09 | H35: 11.07 | I35: 2.318 | J35: 112.363 | K35: 76.724
A36: 2019/09/02 07:00:00 | B36: -0.065 | C36: 0.411 | D36: 0.347 | E36: 20.92 | F36: 4.085 | G36: 0 | H36: 10.981 | I36: 2.125 | J36: 112.351 | K36: 77.189
A37: 2019/09/02 08:00:00 | B37: -0.021 | C37: 0.317 | D37: 0.295 | E37: 19.801 | F37: 3.585 | G37: 0 | H37: 11.1 | I37: 1.218 | J37: 104.18 | K37: 77.181
A38: 2019/09/02 09:00:00 | B38: 0.183 | C38: 0.272 | D38: 0.454 | E38: 17.224 | F38: 3.255 | G38: 0.66 | H38: 10.903 | I38: 1.066 | J38: 84.443 | K38: 80.933
A39: 2019/09/02 10:00:00 | B39: 1.966 | C39: 1.562 | D39: 3.525 | E39: 15.765 | F39: 3.943 | G39: 5.44 | H39: 10.607 | I39: 0.929 | J39: 108.959 | K39: 86.686
A40: 2019/09/02 11:00:00 | B40: 0.134 | C40: 0.576 | D40: 0.709 | E40: 17.977 | F40: 4.153 | G40: 7.47 | H40: 10.708 | I40: 1.464 | J40: 94.145 | K40: 88.513
A41: 2019/09/02 12:00:00 | B41: -0.054 | C41: 0.304 | D41: 0.248 | E41: 19 | F41: 3.251 | G41: 0.81 | H41: 11.318 | I41: 1.713 | J41: 117.479 | K41: 88.62
A42: 2019/09/02 13:00:00 | B42: -0.018 | C42: 0.265 | D42: 0.244 | E42: 18.927 | F42: 2.195 | G42: 0 | H42: 12.082 | I42: 1.036 | J42: 129.692 | K42: 88.294
A43: 2019/09/02 14:00:00 | B43: 0.075 | C43: 0.302 | D43: 0.375 | E43: 17.625 | F43: 1.896 | G43: 0 | H43: 12.657 | I43: 0.514 | J43: 197.046 | K43: 87.998
A44: 2019/09/02 15:00:00 | B44: -0.027 | C44: 0.317 | D44: 0.287 | E44: 17.113 | F44: 2.021 | G44: 0 | H44: 12.939 | I44: 1.222 | J44: 265.192 | K44: 86.972
A45: 2019/09/02 16:00:00 | B45: 0.049 | C45: 0.386 | D45: 0.432 | E45: 17.317 | F45: 2.345 | G45: 0 | H45: 13.275 | I45: 1.913 | J45: 286.03 | K45: 84.735
A46: 2019/09/02 17:00:00 | B46: 0.113 | C46: 0.515 | D46: 0.625 | E46: 18.546 | F46: 2.932 | G46: 0 | H46: 13.599 | I46: 2.353 | J46: 305.661 | K46: 82.067
A47: 2019/09/02 18:00:00 | B47: -0.047 | C47: 0.404 | D47: 0.352 | E47: 17.425 | F47: 2.817 | G47: 0 | H47: 13.343 | I47: 2.103 | J47: 302.795 | K47: 82.28
A48: 2019/09/02 19:00:00 | B48: 0.008 | C48: 0.473 | D48: 0.477 | E48: 15.649 | F48: 3.153 | G48: 0 | H48: 13.404 | I48: 1.646 | J48: 291.401 | K48: 84.596
A49: 2019/09/02 20:00:00 | B49: 0.059 | C49: 0.338 | D49: 0.391 | E49: 14.882 | F49: 2.776 | G49: 0 | H49: 13.444 | I49: 2.161 | J49: 288.679 | K49: 84.749
A50: 2019/09/02 21:00:00 | B50: 0.049 | C50: 0.301 | D50: 0.347 | E50: 15.765 | F50: 1.891 | G50: 0 | H50: 12.943 | I50: 2.358 | J50: 282.909 | K50: 84.865
A51: 2019/09/02 22:00:00 | B51: Z | C51: Z | D51: Z | E51: Z | F51: 1.753 | G51: 0 | H51: 12.525 | I51: 2.371 | J51: 294.092 | K51: 84.186
A52: 2019/09/02 23:00:00 | B52: -0.034 | C52: 0.349 | D52: 0.31 | E52: 13.313 | F52: 1.41 | G52: 0 | H52: 12.093 | I52: 2.319 | J52: 285.161 | K52: 85.354
A53: 2019/09/03 00:00:00 | B53: 0.029 | C53: 0.148 | D53: 0.173 | E53: 12.694 | F53: 1.348 | G53: 0 | H53: 11.327 | I53: 1.82 | J53: 295.49 | K53: 85.325
A54: 2019/09/03 01:00:00 | B54: -0.032 | C54: 0.42 | D54: 0.384 | E54: 11.575 | F54: 3.947 | G54: 0 | H54: 10.375 | I54: 1.372 | J54: 277.677 | K54: 86.655
A55: 2019/09/03 02:00:00 | B55: 0.109 | C55: 0.224 | D55: 0.329 | E55: 11.944 | F55: 3.734 | G55: 0 | H55: 9.831 | I55: 1.209 | J55: 294.682 | K55: 86.59
A56: 2019/09/03 03:00:00 | B56: 0.17 | C56: 0.206 | D56: 0.371 | E56: 13.457 | F56: 2.871 | G56: 0 | H56: 10.751 | I56: 1.157 | J56: 289.538 | K56: 84.681
A57: 2019/09/03 04:00:00 | B57: 0.047 | C57: 0.218 | D57: 0.261 | E57: 12.224 | F57: 2.757 | G57: 0 | H57: 9.767 | I57: 1.297 | J57: 255.344 | K57: 87.055
A58: 2019/09/03 05:00:00 | B58: -0.018 | C58: 0.243 | D58: 0.223 | E58: 12.369 | F58: 2.829 | G58: 0 | H58: 8.908 | I58: 1.249 | J58: 221.179 | K58: 88.493
A59: 2019/09/03 06:00:00 | B59: -0.031 | C59: 0.27 | D59: 0.234 | E59: 12.046 | F59: 3.247 | G59: 0 | H59: 8.851 | I59: 0.92 | J59: 199.908 | K59: 88.615
A60: 2019/09/03 07:00:00 | B60: 0.289 | C60: 0.38 | D60: 0.665 | E60: 9.755 | F60: 2.917 | G60: 0 | H60: 8.707 | I60: 0.367 | J60: 178.461 | K60: 88.295
A61: 2019/09/03 08:00:00 | B61: 0.026 | C61: 0.351 | D61: 0.375 | E61: 11.721 | F61: 2.177 | G61: 0 | H61: 10.371 | I61: 0.616 | J61: 196.194 | K61: 85.046
A62: 2019/09/03 09:00:00 | B62: 0.034 | C62: 0.206 | D62: 0.238 | E62: 14.602 | F62: 2.167 | G62: 0 | H62: 12.458 | I62: 0.729 | J62: 194.321 | K62: 80.119
A63: 2019/09/03 10:00:00 | B63: 0.056 | C63: 0.22 | D63: 0.273 | E63: 16.149 | F63: 2.715 | G63: 0 | H63: 13.46 | I63: 0.561 | J63: 198.478 | K63: 78.457
A64: 2019/09/03 11:00:00 | B64: 0.133 | C64: 0.293 | D64: 0.423 | E64: 19.238 | F64: 3.071 | G64: 0 | H64: 16.431 | I64: 0.866 | J64: 186.144 | K64: 68.968
A65: 2019/09/03 12:00:00 | B65: 0.733 | C65: 0.288 | D65: 1.016 | E65: 23.525 | F65: 3.093 | G65: 0 | H65: 18.78 | I65: 1.612 | J65: 199.316 | K65: 60.77
A66: 2019/09/03 13:00:00 | B66: 0.088 | C66: 0.578 | D66: 0.663 | E66: 32.411 | F66: 3.294 | G66: 0 | H66: 20.621 | I66: 2.453 | J66: 235.923 | K66: 52.568
A67: 2019/09/03 14:00:00 | B67: 0.05 | C67: 0.682 | D67: 0.73 | E67: 35.26 | F67: 3.441 | G67: 0 | H67: 21.403 | I67: 3.284 | J67: 263.102 | K67: 49.572
A68: 2019/09/03 15:00:00 | B68: 0.126 | C68: 0.538 | D68: 0.662 | E68: 36.394 | F68: 3.237 | G68: 0 | H68: 22.013 | I68: 3.3 | J68: 262.485 | K68: 46.323
A69: 2019/09/03 16:00:00 | B69: 0.014 | C69: 0.477 | D69: 0.489 | E69: 39.707 | F69: 2.15 | G69: 0 | H69: 22.554 | I69: 3.556 | J69: 287.353 | K69: 42.407
A70: 2019/09/03 17:00:00 | B70: -0.071 | C70: 0.447 | D70: 0.373 | E70: 37.1 | F70: 2.712 | G70: 0 | H70: 21.608 | I70: 3.109 | J70: 312.598 | K70: 43.868
A71: 2019/09/03 18:00:00 | B71: 0.037 | C71: 0.49 | D71: 0.523 | E71: 34.349 | F71: 3.379 | G71: 0 | H71: 21.028 | I71: 1.597 | J71: 321.806 | K71: 49.051
A72: 2019/09/03 19:00:00 | B72: -0.041 | C72: 0.403 | D72: 0.359 | E72: 33.409 | F72: 3.005 | G72: 0 | H72: 20.935 | I72: 1.279 | J72: 338.573 | K72: 49.787
A73: 2019/09/03 20:00:00 | B73: 0.106 | C73: 0.659 | D73: 0.762 | E73: 24.483 | F73: 4.968 | G73: 0 | H73: 18.654 | I73: 0.32 | J73: 116.722 | K73: 62.944
A74: 2019/09/03 21:00:00 | B74: Z | C74: Z | D74: Z | E74: Z | F74: 7.603 | G74: 0 | H74: 15.51 | I74: 0.866 | J74: 163.911 | K74: 74.152
A75: 2019/09/03 22:00:00 | B75: 0.032 | C75: 0.427 | D75: 0.458 | E75: 20.965 | F75: 7.295 | G75: 0 | H75: 14.373 | I75: 0.829 | J75: 158.683 | K75: 74.564
A76: 2019/09/03 23:00:00 | B76: -0.07 | C76: 0.315 | D76: 0.243 | E76: 20.002 | F76: 7.145 | G76: 0 | H76: 13.255 | I76: 0.711 | J76: 138.603 | K76: 77.06
A77: 2019/09/04 00:00:00 | B77: -0.05 | C77: 0.241 | D77: 0.189 | E77: 18.315 | F77: 7.007 | G77: 0 | H77: 12.651 | I77: 0.762 | J77: 126.583 | K77: 79.919
A78: 2019/09/04 01:00:00 | B78: -0.167 | C78: 0.273 | D78: 0.105 | E78: 19.75 | F78: 7.353 | G78: 0 | H78: 12.604 | I78: 0.656 | J78: 124.642 | K78: 79.669
A79: 2019/09/04 02:00:00 | B79: 0.066 | C79: 0.165 | D79: 0.229 | E79: 20.539 | F79: 7.066 | G79: 0 | H79: 12.618 | I79: 0.895 | J79: 132.051 | K79: 77.658
A80: 2019/09/04 03:00:00 | B80: 0.034 | C80: 0.173 | D80: 0.205 | E80: 21.159 | F80: 5.787 | G80: 0 | H80: 12.466 | I80: 0.674 | J80: 166.841 | K80: 75.645
A81: 2019/09/04 04:00:00 | B81: 0.04 | C81: 0.15 | D81: 0.188 | E81: 19.6 | F81: 5.464 | G81: 0 | H81: 11.928 | I81: 0.768 | J81: 172.19 | K81: 76.735
A82: 2019/09/04 05:00:00 | B82: -0.062 | C82: 0.178 | D82: 0.115 | E82: 18.816 | F82: 5.32 | G82: 0 | H82: 11.892 | I82: 0.681 | J82: 154.017 | K82: 77.028
A83: 2019/09/04 06:00:00 | B83: 0.042 | C83: 0.224 | D83: 0.265 | E83: 19.206 | F83: 4.888 | G83: 0 | H83: 11.911 | I83: 0.497 | J83: 93.349 | K83: 77.384
A84: 2019/09/04 07:00:00 | B84: 0.047 | C84: 0.333 | D84: 0.377 | E84: 17.477 | F84: 5.018 | G84: 0 | H84: 11.455 | I84: 0.361 | J84: 118.783 | K84: 79.939
A85: 2019/09/04 08:00:00 | B85: 0.082 | C85: 0.248 | D85: 0.328 | E85: 15.616 | F85: 4.644 | G85: 0 | H85: 11.522 | I85: 0.704 | J85: 112.057 | K85: 81.232
A86: 2019/09/04 09:00:00 | B86: 0.394 | C86: 0.263 | D86: 0.656 | E86: 17.554 | F86: 3.46 | G86: 0 | H86: 13.781 | I86: 1.945 | J86: 124.956 | K86: 73.42
A87: 2019/09/04 10:00:00 | B87: 0.381 | C87: 0.311 | D87: 0.69 | E87: 21.498 | F87: 2.602 | G87: 0 | H87: 16.162 | I87: 2.158 | J87: 124.697 | K87: 64.803
A88: 2019/09/04 11:00:00 | B88: 0.235 | C88: 0.494 | D88: 0.727 | E88: 24.102 | F88: 2.977 | G88: 0 | H88: 17.229 | I88: 2.348 | J88: 117.231 | K88: 60.819
A89: 2019/09/04 12:00:00 | B89: 0.288 | C89: 0.383 | D89: 0.67 | E89: 24.776 | F89: 3.413 | G89: 0 | H89: 17.819 | I89: 2.35 | J89: 117.01 | K89: 59.79
A90: 2019/09/04 13:00:00 | B90: 0.144 | C90: 0.153 | D90: 0.295 | E90: 28.226 | F90: 2.434 | G90: 0 | H90: 19.44 | I90: 3.043 | J90: 113.084 | K90: 52.787
A91: 2019/09/04 14:00:00 | B91: 0.224 | C91: 0.15 | D91: 0.373 | E91: 28.836 | F91: 3.769 | G91: 0 | H91: 20.887 | I91: 2.858 | J91: 117.128 | K91: 48.083
A92: 2019/09/04 15:00:00 | B92: 0.298 | C92: 0.124 | D92: 0.42 | E92: 29.188 | F92: 4.697 | G92: 0 | H92: 21.298 | I92: 2.502 | J92: 115.484 | K92: 47.148
A93: 2019/09/04 16:00:00 | B93: 0.181 | C93: 0.321 | D93: 0.501 | E93: 31.759 | F93: 4.022 | G93: 0 | H93: 21.418 | I93: 2.547 | J93: 104.577 | K93: 47.026
A94: 2019/09/04 17:00:00 | B94: 0.26 | C94: 0.3 | D94: 0.559 | E94: 32.73 | F94: 5.865 | G94: 0 | H94: 21.027 | I94: 2.88 | J94: 105.078 | K94: 46.269
A95: 2019/09/04 18:00:00 | B95: 0.041 | C95: 0.231 | D95: 0.271 | E95: 32.345 | F95: 5.688 | G95: 0 | H95: 20.535 | I95: 2.44 | J95: 116.489 | K95: 48.043
A96: 2019/09/04 19:00:00 | B96: 0.099 | C96: 0.184 | D96: 0.281 | E96: 28.215 | F96: 5.071 | G96: 0 | H96: 19.319 | I96: 2.512 | J96: 119.501 | K96: 52.132
A97: 2019/09/04 20:00:00 | B97: Z | C97: Z | D97: Z | E97: Z | F97: 4.825 | G97: 0 | H97: 17.25 | I97: 1.012 | J97: 131.472 | K97: 57.708
A98: 2019/09/04 21:00:00 | B98: 0.123 | C98: 0.477 | D98: 0.598 | E98: 23.303 | F98: 9.792 | G98: 0 | H98: 14.243 | I98: 0.696 | J98: 146.613 | K98: 68.697
A99: 2019/09/04 22:00:00 | B99: 0.22 | C99: 0.207 | D99: 0.427 | E99: 20.974 | F99: 6.468 | G99: 0 | H99: 13.387 | I99: 1.128 | J99: 134.164 | K99: 72.887
A100: 2019/09/04 23:00:00 | B100: 0.134 | C100: 0.167 | D100: 0.301 | E100: 19.392 | F100: 6.475 | G100: 0 | H100: 12.995 | I100: 1.329 | J100: 127.683 | K100: 75.651
A101: 2019/09/05 00:00:00 | B101: 0.171 | C101: 0.142 | D101: 0.311 | E101: 18.333 | F101: 5.632 | G101: 0 | H101: 12.909 | I101: 1.532 | J101: 128.827 | K101: 77.607
A102: 2019/09/05 01:00:00 | B102: 0.092 | C102: 0.135 | D102: 0.227 | E102: 16.894 | F102: 5.491 | G102: 0 | H102: 12.505 | I102: 1.168 | J102: 144.302 | K102: 80.111
A103: 2019/09/05 02:00:00 | B103: -0.005 | C103: 0.176 | D103: 0.17 | E103: 15.143 | F103: 6.058 | G103: 0 | H103: 12.174 | I103: 1.204 | J103: 152.543 | K103: 82.322
A104: 2019/09/05 03:00:00 | B104: 0.127 | C104: 0.166 | D104: 0.292 | E104: 13.826 | F104: 5.74 | G104: 0 | H104: 12.378 | I104: 1.304 | J104: 148.087 | K104: 82.961
A105: 2019/09/05 04:00:00 | B105: 0.128 | C105: 0.171 | D105: 0.297 | E105: 13.172 | F105: 5.423 | G105: 0 | H105: 12.289 | I105: 1.218 | J105: 199.428 | K105: 83.155
A106: 2019/09/05 05:00:00 | B106: 0.025 | C106: 0.242 | D106: 0.265 | E106: 12.971 | F106: 5.934 | G106: 0 | H106: 12.191 | I106: 1.397 | J106: 208.06 | K106: 84.357
A107: 2019/09/05 06:00:00 | B107: 0.048 | C107: 0.472 | D107: 0.52 | E107: 19.102 | F107: 4.032 | G107: 0 | H107: 13.587 | I107: 2.569 | J107: 243.906 | K107: 79.531
A108: 2019/09/05 07:00:00 | B108: 0.047 | C108: 0.513 | D108: 0.559 | E108: 19.858 | F108: 2.773 | G108: 0 | H108: 13.648 | I108: 2.884 | J108: 253.466 | K108: 79.137
A109: 2019/09/05 08:00:00 | B109: 0.078 | C109: 0.468 | D109: 0.545 | E109: 18.4 | F109: 2.282 | G109: 0 | H109: 13.887 | I109: 2.995 | J109: 254.044 | K109: 78.85
A110: 2019/09/05 09:00:00 | B110: 0.122 | C110: 0.404 | D110: 0.524 | E110: 17.626 | F110: 1.77 | G110: 0 | H110: 14.095 | I110: 3.135 | J110: 258.711 | K110: 77.88
A111: 2019/09/05 10:00:00 | B111: 0.163 | C111: 0.383 | D111: 0.544 | E111: 22.129 | F111: 1.076 | G111: 0 | H111: 15.171 | I111: 3.539 | J111: 274.885 | K111: 70.947
A112: 2019/09/05 11:00:00 | B112: 0.151 | C112: 0.284 | D112: 0.434 | E112: 27.305 | F112: 1.181 | G112: 0 | H112: 15.74 | I112: 3.737 | J112: 279.247 | K112: 64.797
A113: 2019/09/05 12:00:00 | B113: 0.113 | C113: 0.333 | D113: 0.445 | E113: 28.541 | F113: 1.378 | G113: 0 | H113: 17.274 | I113: 3.81 | J113: 279.59 | K113: 59.811
A114: 2019/09/05 13:00:00 | B114: 0.185 | C114: 0.298 | D114: 0.482 | E114: 30.587 | F114: 0.978 | G114: 0 | H114: 18.254 | I114: 4.245 | J114: 279.013 | K114: 54.5
A115: 2019/09/05 14:00:00 | B115: 0.104 | C115: 0.207 | D115: 0.311 | E115: 32.162 | F115: 1.053 | G115: 0 | H115: 19.201 | I115: 4.096 | J115: 282.153 | K115: 50.417
A116: 2019/09/05 15:00:00 | B116: 0.206 | C116: 0.192 | D116: 0.397 | E116: 34.507 | F116: 1.193 | G116: 0 | H116: 20.214 | I116: 3.761 | J116: 289.931 | K116: 46.057
A117: 2019/09/05 16:00:00 | B117: 0.168 | C117: 0.298 | D117: 0.464 | E117: 35.149 | F117: 1.952 | G117: 0 | H117: 20.178 | I117: 3.158 | J117: 305.293 | K117: 44.119
A118: 2019/09/05 17:00:00 | B118: -0.007 | C118: 0.167 | D118: 0.16 | E118: 34.863 | F118: 1.191 | G118: 0 | H118: 20.789 | I118: 3.419 | J118: 322.889 | K118: 39.969
A119: 2019/09/05 18:00:00 | B119: 0.15 | C119: 0.257 | D119: 0.405 | E119: 34.436 | F119: 2.174 | G119: 0 | H119: 20.534 | I119: 2.885 | J119: 308.618 | K119: 39.404
A120: 2019/09/05 19:00:00 | B120: Z | C120: Z | D120: Z | E120: Z | F120: 3.521 | G120: 0 | H120: 19.48 | I120: 1.755 | J120: 306.72 | K120: 43.127
A121: 2019/09/05 20:00:00 | B121: 0.03 | C121: 0.894 | D121: 0.923 | E121: 27.21 | F121: 16.909 | G121: 0 | H121: 16.95 | I121: 0.982 | J121: 229.258 | K121: 56.001
A122: 2019/09/05 21:00:00 | B122: -0.014 | C122: 0.758 | D122: 0.743 | E122: 23.918 | F122: 9.273 | G122: 0 | H122: 14.944 | I122: 0.941 | J122: 202.525 | K122: 63.109
A123: 2019/09/05 22:00:00 | B123: 0.084 | C123: 0.55 | D123: 0.635 | E123: 23.567 | F123: 5.792 | G123: 0 | H123: 14.074 | I123: 1.053 | J123: 204.093 | K123: 64.684
A124: 2019/09/05 23:00:00 | B124: -0.055 | C124: 0.416 | D124: 0.36 | E124: 22.467 | F124: 4.615 | G124: 0 | H124: 13.162 | I124: 0.975 | J124: 205.441 | K124: 68.39
A125: 2019/09/06 00:00:00 | B125: 0.002 | C125: 0.339 | D125: 0.342 | E125: 22.408 | F125: 3.329 | G125: 0 | H125: 12.946 | I125: 1.402 | J125: 211.14 | K125: 69.104
A126: 2019/09/06 01:00:00 | B126: -0.002 | C126: 0.36 | D126: 0.356 | E126: 22.672 | F126: 3.706 | G126: 0 | H126: 12.629 | I126: 1.079 | J126: 244.875 | K126: 70.103
A127: 2019/09/06 02:00:00 | B127: 0.053 | C127: 0.305 | D127: 0.359 | E127: 20.386 | F127: 3.034 | G127: 0 | H127: 11.194 | I127: 1.079 | J127: 235.034 | K127: 75.958
A128: 2019/09/06 03:00:00 | B128: 0.06 | C128: 0.476 | D128: 0.535 | E128: 17.563 | F128: 3.702 | G128: 0 | H128: 10.235 | I128: 1.213 | J128: 229.836 | K128: 80.186
A129: 2019/09/06 04:00:00 | B129: -0.034 | C129: 0.414 | D129: 0.38 | E129: 16.155 | F129: 3.537 | G129: 0 | H129: 9.35 | I129: 1.16 | J129: 212.923 | K129: 82.704
A130: 2019/09/06 05:00:00 | B130: 0.023 | C130: 0.371 | D130: 0.395 | E130: 13.61 | F130: 3.602 | G130: 0 | H130: 8.385 | I130: 0.856 | J130: 209.91 | K130: 83.853
A131: 2019/09/06 06:00:00 | B131: -0.045 | C131: 0.302 | D131: 0.256 | E131: 10.375 | F131: 3.945 | G131: 0 | H131: 6.843 | I131: 0.888 | J131: 196.457 | K131: 87.762
A132: 2019/09/06 07:00:00 | B132: 0.016 | C132: 0.308 | D132: 0.325 | E132: 11.333 | F132: 5.058 | G132: 0 | H132: 6.921 | I132: 0.767 | J132: 206.663 | K132: 86.903
A133: 2019/09/06 08:00:00 | B133: 1.207 | C133: 0.585 | D133: 1.792 | E133: 8.333 | F133: 6.354 | G133: 0 | H133: 6.98 | I133: 0.52 | J133: 209.703 | K133: 87.08
A134: 2019/09/06 09:00:00 | B134: 0.247 | C134: 0.394 | D134: 0.643 | E134: 13.396 | F134: 2.786 | G134: 0 | H134: 10.083 | I134: 0.988 | J134: 264.662 | K134: 81.353
A135: 2019/09/06 10:00:00 | B135: 0.132 | C135: 0.455 | D135: 0.588 | E135: 16.378 | F135: 1.468 | G135: 0 | H135: 12.646 | I135: 0.531 | J135: 335.783 | K135: 71.984
A136: 2019/09/06 11:00:00 | B136: -0.063 | C136: 0.214 | D136: 0.151 | E136: 23.415 | F136: 1.084 | G136: 0 | H136: 14.309 | I136: 0.979 | J136: 21.189 | K136: 60.899
A137: 2019/09/06 12:00:00 | B137: 0.068 | C137: 0.302 | D137: 0.371 | E137: 26.478 | F137: 0.849 | G137: 0 | H137: 15.474 | I137: 0.765 | J137: 340.535 | K137: 53.919
A138: 2019/09/06 13:00:00 | B138: -0.047 | C138: 0.197 | D138: 0.151 | E138: 29.032 | F138: 0.61 | G138: 0 | H138: 16.064 | I138: 1.818 | J138: 8.938 | K138: 49.34
A139: 2019/09/06 14:00:00 | B139: 0.001 | C139: 0.112 | D139: 0.113 | E139: 29.576 | F139: 0.624 | G139: 0 | H139: 16.875 | I139: 1.496 | J139: 36.293 | K139: 44.989
A140: 2019/09/06 15:00:00 | B140: 0.074 | C140: 0.111 | D140: 0.187 | E140: 29.624 | F140: 0.64 | G140: 0 | H140: 17.39 | I140: 2.325 | J140: 38.309 | K140: 45.962
A141: 2019/09/06 16:00:00 | B141: -0.023 | C141: 0.107 | D141: 0.085 | E141: 28.683 | F141: 0.685 | G141: 0 | H141: 17.527 | I141: 0.614 | J141: 43.309 | K141: 45.46
A142: 2019/09/06 17:00:00 | B142: 0.046 | C142: 0.083 | D142: 0.128 | E142: 28.537 | F142: 0.669 | G142: 0 | H142: 18.14 | I142: 0.447 | J142: 0.14 | K142: 44.568
A143: 2019/09/06 18:00:00 | B143: Z | C143: Z | D143: Z | E143: Z | F143: 0.66 | G143: 0 | H143: 17.523 | I143: 1.391 | J143: 33.93 | K143: 45.341
A144: 2019/09/06 19:00:00 | B144: 0.062 | C144: 0.353 | D144: 0.416 | E144: 25.13 | F144: 0.937 | G144: 0 | H144: 16.841 | I144: 1.382 | J144: 54.953 | K144: 51.921
A145: 2019/09/06 20:00:00 | B145: 0.407 | C145: 1.252 | D145: 1.66 | E145: 18.395 | F145: 36.151 | G145: 0 | H145: 14.369 | I145: 0.292 | J145: 153.106 | K145: 64.415
A146: 2019/09/06 21:00:00 | B146: 0.031 | C146: 0.361 | D146: 0.393 | E146: 16.518 | F146: 5.383 | G146: 0 | H146: 12.559 | I146: 0.434 | J146: 170.783 | K146: 72.356
A147: 2019/09/06 22:00:00 | B147: 0.101 | C147: 0.402 | D147: 0.503 | E147: 15.021 | F147: 3.567 | G147: 0 | H147: 11.384 | I147: 0.612 | J147: 166.778 | K147: 76.097
A148: 2019/09/06 23:00:00 | B148: 0.012 | C148: 0.266 | D148: 0.278 | E148: 16.82 | F148: 2.605 | G148: 0 | H148: 11.136 | I148: 0.773 | J148: 148.231 | K148: 75.348
A149: 2019/09/07 00:00:00 | B149: 0.118 | C149: 0.148 | D149: 0.266 | E149: 18.125 | F149: 3.804 | G149: 0 | H149: 10.884 | I149: 0.6 | J149: 139.641 | K149: 74.455
A150: 2019/09/07 01:00:00 | B150: 0.014 | C150: 0.266 | D150: 0.281 | E150: 18.293 | F150: 5.44 | G150: 0 | H150: 11.037 | I150: 0.547 | J150: 142.724 | K150: 73.057
A151: 2019/09/07 02:00:00 | B151: 0.033 | C151: 0.121 | D151: 0.156 | E151: 17.948 | F151: 2.181 | G151: 0 | H151: 11.006 | I151: 0.638 | J151: 134.054 | K151: 73.259
A152: 2019/09/07 03:00:00 | B152: 0.073 | C152: 0.034 | D152: 0.107 | E152: 17.364 | F152: 2.311 | G152: 0 | H152: 10.631 | I152: 0.698 | J152: 131.886 | K152: 73.984
A153: 2019/09/07 04:00:00 | B153: 0.022 | C153: 0.118 | D153: 0.14 | E153: 18.031 | F153: 2.509 | G153: 0 | H153: 10.795 | I153: 1.043 | J153: 126.356 | K153: 73.119
A154: 2019/09/07 05:00:00 | B154: 0.04 | C154: 0.19 | D154: 0.231 | E154: 16.486 | F154: 2.644 | G154: 0 | H154: 10.682 | I154: 1.414 | J154: 121.216 | K154: 75.013
A155: 2019/09/07 06:00:00 | B155: 0.071 | C155: 0.163 | D155: 0.235 | E155: 15.737 | F155: 2.632 | G155: 0 | H155: 10.889 | I155: 1.162 | J155: 132.159 | K155: 75.099
A156: 2019/09/07 07:00:00 | B156: 0.051 | C156: 0.17 | D156: 0.221 | E156: 15.035 | F156: 2.474 | G156: 0 | H156: 10.811 | I156: 1.19 | J156: 134.182 | K156: 76.167
A157: 2019/09/07 08:00:00 | B157: 0.071 | C157: 0.12 | D157: 0.193 | E157: 14.943 | F157: 2.614 | G157: 0 | H157: 10.901 | I157: 1.351 | J157: 131.24 | K157: 75.942
A158: 2019/09/07 09:00:00 | B158: 0.292 | C158: 0.213 | D158: 0.507 | E158: 14.638 | F158: 3.466 | G158: 0 | H158: 11.209 | I158: 1.432 | J158: 133.775 | K158: 75.541
A159: 2019/09/07 10:00:00 | B159: 0.191 | C159: 0.102 | D159: 0.295 | E159: 13.915 | F159: 2.661 | G159: 0 | H159: 11.935 | I159: 1.048 | J159: 132.213 | K159: 73.957
A160: 2019/09/07 11:00:00 | B160: 0.127 | C160: 0.167 | D160: 0.295 | E160: 13.867 | F160: 2.217 | G160: 0 | H160: 12.922 | I160: 0.992 | J160: 117.864 | K160: 71.44
A161: 2019/09/07 12:00:00 | B161: 0.841 | C161: 0.144 | D161: 0.986 | E161: 13.529 | F161: 5.464 | G161: 0 | H161: 14.242 | I161: 0.674 | J161: 124.309 | K161: 69.41
A162: 2019/09/07 13:00:00 | B162: 0.979 | C162: 0.734 | D162: 1.713 | E162: 15.609 | F162: 2.59 | G162: 0 | H162: 15.646 | I162: 1.138 | J162: 123.806 | K162: 65.452
A163: 2019/09/07 14:00:00 | B163: 0.16 | C163: 0.155 | D163: 0.317 | E163: 23.521 | F163: 1.421 | G163: 0 | H163: 18.224 | I163: 1.184 | J163: 143.927 | K163: 53.875
A164: 2019/09/07 15:00:00 | B164: 0.33 | C164: 0.205 | D164: 0.537 | E164: 28.613 | F164: 5.313 | G164: 0 | H164: 19.263 | I164: 1.183 | J164: 145.714 | K164: 47.857
A165: 2019/09/07 16:00:00 | B165: 0.219 | C165: 0.137 | D165: 0.358 | E165: 30.99 | F165: 2.862 | G165: 0 | H165: 19.943 | I165: 1.02 | J165: 169.092 | K165: 45.193
A166: 2019/09/07 17:00:00 | B166: Z | C166: Z | D166: Z | E166: Z | F166: 6.381 | G166: 0.01 | H166: 19.23 | I166: 0.832 | J166: 135.222 | K166: 51.018
A167: 2019/09/07 18:00:00 | B167: 0.225 | C167: 0.55 | D167: 0.776 | E167: 27.875 | F167: 10.63 | G167: 0 | H167: 18.268 | I167: 0.922 | J167: 130.845 | K167: 54.975
A168: 2019/09/07 19:00:00 | B168: 0.295 | C168: 0.417 | D168: 0.713 | E168: 27.027 | F168: 4.832 | G168: 0 | H168: 18 | I168: 0.9 | J168: 133.346 | K168: 57.52
A169: 2019/09/07 20:00:00 | B169: 0.386 | C169: 0.696 | D169: 1.083 | E169: 24.503 | F169: 14.205 | G169: 0 | H169: 16.835 | I169: 0.919 | J169: 129.411 | K169: 63.119
A170: 2019/09/07 21:00:00 | B170: 0.137 | C170: 0.396 | D170: 0.533 | E170: 23.708 | F170: 5.868 | G170: 0 | H170: 16.012 | I170: 1.038 | J170: 134.142 | K170: 65.05
A171: 2019/09/07 22:00:00 | B171: 0.18 | C171: 0.379 | D171: 0.56 | E171: 25.125 | F171: 5.101 | G171: 0 | H171: 16.269 | I171: 0.74 | J171: 159.966 | K171: 63.068
A172: 2019/09/07 23:00:00 | B172: 0.154 | C172: 0.313 | D172: 0.467 | E172: 24.176 | F172: 5.089 | G172: 0 | H172: 15.804 | I172: 0.708 | J172: 190.374 | K172: 65.275
A173: 2019/09/08 00:00:00 | B173: 0.136 | C173: 0.397 | D173: 0.533 | E173: 23.76 | F173: 5.794 | G173: 0 | H173: 15.292 | I173: 0.748 | J173: 258.263 | K173: 67.175
A174: 2019/09/08 01:00:00 | B174: 0.12 | C174: 0.603 | D174: 0.722 | E174: 22.194 | F174: 6.859 | G174: 0 | H174: 13.975 | I174: 0.841 | J174: 222.433 | K174: 73.164
A175: 2019/09/08 02:00:00 | B175: 0.221 | C175: 0.589 | D175: 0.81 | E175: 18.802 | F175: 6.557 | G175: 0 | H175: 12.563 | I175: 1.037 | J175: 278.884 | K175: 80.439
A176: 2019/09/08 03:00:00 | B176: 0.286 | C176: 0.503 | D176: 0.789 | E176: 15.943 | F176: 6.378 | G176: 0 | H176: 12.435 | I176: 1.02 | J176: 333.719 | K176: 85.184
A177: 2019/09/08 04:00:00 | B177: 0.155 | C177: 0.426 | D177: 0.579 | E177: 13.884 | F177: 6.562 | G177: 0 | H177: 12.453 | I177: 1.171 | J177: 283.758 | K177: 85.78
A178: 2019/09/08 05:00:00 | B178: 0.058 | C178: 0.318 | D178: 0.377 | E178: 12.192 | F178: 4.332 | G178: 0.03 | H178: 12.328 | I178: 1.662 | J178: 338.933 | K178: 85.127
A179: 2019/09/08 06:00:00 | B179: 0.166 | C179: 0.272 | D179: 0.439 | E179: 10.92 | F179: 2.218 | G179: 0.48 | H179: 11.926 | I179: 1.038 | J179: 319.893 | K179: 86.617
A180: 2019/09/08 07:00:00 | B180: 0.103 | C180: 0.267 | D180: 0.37 | E180: 10.017 | F180: 1.721 | G180: 0.21 | H180: 11.663 | I180: 1.404 | J180: 337.592 | K180: 87.463
A181: 2019/09/08 08:00:00 | B181: 0.162 | C181: 0.096 | D181: 0.258 | E181: 12.475 | F181: 0.836 | G181: 0 | H181: 11.267 | I181: 2.574 | J181: 3.19 | K181: 87.745
A182: 2019/09/08 09:00:00 | B182: 0.134 | C182: 0.089 | D182: 0.222 | E182: 12.412 | F182: 0.733 | G182: 0.52 | H182: 11.324 | I182: 2.066 | J182: 8.229 | K182: 88.435
A183: 2019/09/08 10:00:00 | B183: 0.101 | C183: 0.074 | D183: 0.175 | E183: 14.497 | F183: 1.008 | G183: 0.03 | H183: 11.399 | I183: 3.295 | J183: 21.27 | K183: 88.358
A184: 2019/09/08 11:00:00 | B184: 0.08 | C184: 0.139 | D184: 0.22 | E184: 16.844 | F184: 1.152 | G184: 0.65 | H184: 11.158 | I184: 3.168 | J184: 32.581 | K184: 87.058
A185: 2019/09/08 12:00:00 | B185: 0.014 | C185: 0.17 | D185: 0.183 | E185: 17.091 | F185: 1.213 | G185: 0.63 | H185: 11.12 | I185: 3.15 | J185: 39.298 | K185: 86.895
A186: 2019/09/08 13:00:00 | B186: -0.024 | C186: 0.143 | D186: 0.118 | E186: 17.807 | F186: 0.946 | G186: 0.33 | H186: 11.089 | I186: 3.465 | J186: 37.151 | K186: 86.813
A187: 2019/09/08 14:00:00 | B187: -0.026 | C187: 0.172 | D187: 0.145 | E187: 19.541 | F187: 0.88 | G187: 0.05 | H187: 11.407 | I187: 4.107 | J187: 46.694 | K187: 84.805
A188: 2019/09/08 15:00:00 | B188: -0.084 | C188: 0.193 | D188: 0.106 | E188: 20.379 | F188: 0.791 | G188: 0.04 | H188: 11.461 | I188: 4.269 | J188: 51.024 | K188: 84.31
A189: 2019/09/08 16:00:00 | B189: Z | C189: Z | D189: Z | E189: Z | F189: 0.905 | G189: 0 | H189: 11.361 | I189: 4.218 | J189: 49.753 | K189: 83.606
A190: 2019/09/08 17:00:00 | B190: 0.006 | C190: 0.295 | D190: 0.299 | E190: 20.106 | F190: 1.365 | G190: 0 | H190: 10.847 | I190: 3.913 | J190: 48.915 | K190: 86.107
A191: 2019/09/08 18:00:00 | B191: 0.07 | C191: 0.858 | D191: 0.927 | E191: 19.238 | F191: 5.457 | G191: 0 | H191: 10.93 | I191: 3.014 | J191: 55.624 | K191: 85.763
A192: 2019/09/08 19:00:00 | B192: 0.022 | C192: 1.047 | D192: 1.068 | E192: 19.161 | F192: 5.907 | G192: 0 | H192: 10.783 | I192: 3.287 | J192: 56.068 | K192: 85.254
A193: 2019/09/08 20:00:00 | B193: 0.037 | C193: 1.413 | D193: 1.449 | E193: 20.068 | F193: 5.224 | G193: 0 | H193: 10.519 | I193: 3.282 | J193: 68.512 | K193: 84.349
A194: 2019/09/08 21:00:00 | B194: -0.021 | C194: 0.092 | D194: 0.069 | E194: 20.176 | F194: 1.263 | G194: 0 | H194: 10.395 | I194: 2.556 | J194: 73.114 | K194: 84.268
A195: 2019/09/08 22:00:00 | B195: 0.132 | C195: 2.332 | D195: 2.462 | E195: 17.402 | F195: 6.209 | G195: 0 | H195: 10.382 | I195: 2.775 | J195: 66.433 | K195: 83.827
A196: 2019/09/08 23:00:00 | B196: -0.081 | C196: 0.261 | D196: 0.18 | E196: 18.418 | F196: 1.294 | G196: 0 | H196: 10.29 | I196: 2.302 | J196: 74.009 | K196: 84.697
A197: 2019/09/09 00:00:00 | B197: -0.002 | C197: 0.301 | D197: 0.298 | E197: 17.548 | F197: 1.666 | G197: 0 | H197: 10.104 | I197: 2.524 | J197: 68.903 | K197: 85.711
A198: 2019/09/09 01:00:00 | B198: -0.057 | C198: 0.117 | D198: 0.059 | E198: 18.117 | F198: 1.433 | G198: 0 | H198: 9.909 | I198: 2.329 | J198: 78.76 | K198: 86.177
A199: 2019/09/09 02:00:00 | B199: -0.114 | C199: 0.095 | D199: -0.021 | E199: 18.814 | F199: 1.596 | G199: 0 | H199: 9.856 | I199: 2.532 | J199: 76.583 | K199: 85.585
A200: 2019/09/09 03:00:00 | B200: -0.047 | C200: 0.238 | D200: 0.19 | E200: 20.124 | F200: 2.453 | G200: 0 | H200: 9.561 | I200: 2.687 | J200: 72.429 | K200: 86.964
A201: 2019/09/09 04:00:00 | B201: -0.099 | C201: 0.079 | D201: -0.02 | E201: 23.995 | F201: 1.286 | G201: 0 | H201: 9.123 | I201: 2.946 | J201: 72.924 | K201: 87.005
... 531 more rows
